Workbook

Sheet 千曲川上流
A1: 第10-1表 市町村別・公益的機能別施業森林等区分別ゾーニング別・資源表
R2: （単位 面積：ha 蓄積：m3）
A3: 地域振興局 | B3: 市町村名 | C3: 区 分 | E3: 公益的機能別施業森林等区分別
E4: 水かん | G4: 山災/土壌 | I4: 快適環境 | K4: 保健 | M4: 文化 | O4: 独自 | Q4: 木材 | S4: 総数
E5: 面積 | F5: 蓄積 | G5: 面積 | H5: 蓄積 | I5: 面積 | J5: 蓄積 | K5: 面積 | L5: 蓄積 | M5: 面積 | N5: 蓄積 | O5: 面積 | P5: 蓄積 | Q5: 面積 | R5: 蓄積 | S5: 面積 | T5: 蓄積
A6: 佐久 | B6: 小諸市 | C6: 総 数 | E6: =SUM(E7,E10) -> 938.08 | F6: =SUM(F7,F10) -> 236736 | G6: 55.22 | H6: 13920 | I6: 0 | J6: 0 | K6: 0 | L6: 0 | M6: 0 | N6: 0 | O6: 0 | P6: 0 | Q6: 901.38 | R6: 223888 | S6: =SUM(S7,S10) -> 1894.68 | T6: =SUM(T7,T10) -> 474544
C7: 立木地 | D7: 総 数 | E7: =SUM(E8:E9) -> 931.24 | F7: 236686 | G7: 54.28 | H7: 13920 | I7: 0 | J7: 0 | K7: 0 | L7: 0 | M7: 0 | N7: 0 | O7: 0 | P7: 0 | Q7: 893.92 | R7: 223838 | S7: =SUM(S8:S9) -> 1879.44 | T7: =SUM(T8:T9) -> 474444
D8: 人工林 | E8: 677.33 | F8: 189928 | G8: 53.23 | H8: 13567 | J8: 0 | L8: 0 | N8: 0 | P8: 0 | Q8: 650.64 | R8: 179391 | S8: =E8+G8+I8+K8+M8+O8+Q8 -> 1381.2 | T8: 382886
D9: 天然林 | E9: 253.91 | F9: 46758 | G9: 1.05 | H9: 353 | J9: 0 | L9: 0 | N9: 0 | P9: 0 | Q9: 243.28 | R9: 44447 | S9: 498.24 | T9: 91558
C10: その他 | E10: 6.84 | F10: 50 | G10: 0.94 | H10: 0 | J10: 0 | L10: 0 | N10: 0 | P10: 0 | Q10: 7.46 | R10: 50 | S10: 15.24 | T10: 100
B11: 佐久市 | C11: 総 数 | E11: =SUM(E12,E15) -> 12786.93 | F11: =SUM(F12,F15) -> 2977769 | G11: 249.65 | H11: 66154 | I11: 0 | J11: 0 | K11: 0 | L11: 0 | M11: 0 | N11: 0 | O11: 0 | P11: 0 | Q11: 7418.37 | R11: 1831762 | S11: =SUM(S12,S15) -> 20454.95 | T11: =SUM(T12,T15) -> 4875685
C12: 立木地 | D12: 総 数 | E12: =SUM(E13:E14) -> 12555.25 | F12: 2977464 | G12: 243.65 | H12: 66154 | I12: 0 | J12: 0 | K12: 0 | L12: 0 | M12: 0 | N12: 0 | O12: 0 | P12: 0 | Q12: 7257.92 | R12: 1831725 | S12: =SUM(S13:S14) -> 20056.82 | T12: =SUM(T13:T14) -> 4875343
D13: 人工林 | E13: 7763.95 | F13: 2353567 | G13: 190.3 | H13: 59896 | J13: 0 | L13: 0 | N13: 0 | P13: 0 | Q13: 4814.11 | R13: 1480959 | S13: =E13+G13+I13+K13+M13+O13+Q13 -> 12768.36 | T13: 3894422
D14: 天然林 | E14: 4791.3 | F14: 623897 | G14: 53.35 | H14: 6258 | J14: 0 | L14: 0 | N14: 0 | P14: 0 | Q14: 2443.81 | R14: 350766 | S14: 7288.46 | T14: 980921
C15: その他 | E15: 231.68 | F15: 305 | G15: 6 | H15: 0 | J15: 0 | L15: 0 | N15: 0 | P15: 0 | Q15: 160.45 | R15: 37 | S15: 398.13 | T15: 342
B16: 小海町 | C16: 総 数 | E16: =SUM(E17,E20) -> 3781.32 | F16: =SUM(F17,F20) -> 1003739 | G16: 2606.23 | H16: 682934 | I16: 0 | J16: 0 | K16: 87.36 | L16: 21074 | M16: 0 | N16: 0 | O16: 0 | P16: 0 | Q16: 6067.78 | R16: 1605804 | S16: =SUM(S17,S20) -> 12542.69 | T16: =SUM(T17,T20) -> 3313551
C17: 立木地 | D17: 総 数 | E17: =SUM(E18:E19) -> 3751.09 | F17: 1003688 | G17: 2540.97 | H17: 682934 | I17: 0 | J17: 0 | K17: 85.68 | L17: 21074 | M17: 0 | N17: 0 | O17: 0 | P17: 0 | Q17: 5969.44 | R17: 1605753 | S17: =SUM(S18:S19) -> 12347.18 | T17: =SUM(T18:T19) -> 3313449
D18: 人工林 | E18: 2589.66 | F18: 856802 | G18: 1918.44 | H18: 612489 | J18: 0 | K18: 50.54 | L18: 16179 | N18: 0 | P18: 0 | Q18: 4324.61 | R18: 1410247 | S18: =E18+G18+I18+K18+M18+O18+Q18 -> 8883.25 | T18: 2895717
D19: 天然林 | E19: 1161.43 | F19: 146886 | G19: 622.53 | H19: 70445 | J19: 0 | K19: 35.14 | L19: 4895 | N19: 0 | P19: 0 | Q19: 1644.83 | R19: 195506 | S19: 3463.93 | T19: 417732
C20: その他 | E20: 30.23 | F20: 51 | G20: 65.26 | H20: 0 | J20: 0 | K20: 1.68 | L20: 0 | N20: 0 | P20: 0 | Q20: 98.34 | R20: 51 | S20: 195.51 | T20: 102
B21: 川上村 | C21: 総 数 | E21: =SUM(E22,E25) -> 10187.85 | F21: =SUM(F22,F25) -> 2598477 | G21: 473.67 | H21: 111723 | I21: 0 | J21: 0 | K21: 181.45 | L21: 40411 | M21: 0 | N21: 0 | O21: 0 | P21: 0 | Q21: 3568.75 | R21: 962553 | S21: =SUM(S22,S25) -> 14411.72 | T21: =SUM(T22,T25) -> 3713164
C22: 立木地 | D22: 総 数 | E22: =SUM(E23:E24) -> 9764.69 | F22: 2592909 | G22: 441.45 | H22: 111723 | I22: 0 | J22: 0 | K22: 153.9 | L22: 40411 | M22: 0 | N22: 0 | O22: 0 | P22: 0 | Q22: 3497.19 | R22: 962553 | S22: =SUM(S23:S24) -> 13857.23 | T22: =SUM(T23:T24) -> 3707596
D23: 人工林 | E23: 6347.04 | F23: 2077738 | G23: 353.17 | H23: 101344 | J23: 0 | K23: 82.7 | L23: 21545 | N23: 0 | P23: 0 | Q23: 2706.31 | R23: 860189 | S23: =E23+G23+I23+K23+M23+O23+Q23 -> 9489.22 | T23: 3060816
D24: 天然林 | E24: 3417.65 | F24: 515171 | G24: 88.28 | H24: 10379 | J24: 0 | K24: 71.2 | L24: 18866 | N24: 0 | P24: 0 | Q24: 790.88 | R24: 102364 | S24: 4368.01 | T24: 646780
C25: その他 | E25: 423.16 | F25: 5568 | G25: 32.22 | H25: 0 | J25: 0 | K25: 27.55 | L25: 0 | N25: 0 | P25: 0 | Q25: 71.56 | R25: 0 | S25: 554.49 | T25: 5568
B26: 南牧村 | C26: 総 数 | E26: =SUM(E27,E30) -> 4785.65 | F26: =SUM(F27,F30) -> 1184871 | G26: 0 | H26: 0 | I26: 0 | J26: 0 | K26: 48.85 | L26: 3952 | M26: 0 | N26: 0 | O26: 0 | P26: 0 | Q26: 5421.01 | R26: 1298129 | S26: =SUM(S27,S30) -> 10255.51 | T26: =SUM(T27,T30) -> 2486952
C27: 立木地 | D27: 総 数 | E27: =SUM(E28:E29) -> 4666.38 | F27: 1184871 | G27: 0 | H27: 0 | I27: 0 | J27: 0 | K27: 38 | L27: 3952 | M27: 0 | N27: 0 | O27: 0 | P27: 0 | Q27: 5303.68 | R27: 1298129 | S27: =SUM(S28:S29) -> 10008.06 | T27: =SUM(T28:T29) -> 2486952
D28: 人工林 | E28: 3279.31 | F28: 1026097 | H28: 0 | J28: 0 | L28: 0 | N28: 0 | P28: 0 | Q28: 3621.73 | R28: 1114491 | S28: =E28+G28+I28+K28+M28+O28+Q28 -> 6901.04 | T28: 2140588
D29: 天然林 | E29: 1387.07 | F29: 158774 | H29: 0 | J29: 0 | K29: 38 | L29: 3952 | N29: 0 | P29: 0 | Q29: 1681.95 | R29: 183638 | S29: 3107.02 | T29: 346364
C30: その他 | E30: 119.27 | F30: 0 | H30: 0 | J30: 0 | K30: 10.85 | L30: 0 | N30: 0 | P30: 0 | Q30: 117.33 | R30: 0 | S30: 247.45 | T30: 0
B31: 南相木村 | C31: 総 数 | E31: =SUM(E32,E35) -> 804.77 | F31: =SUM(F32,F35) -> 202574 | G31: 770.09 | H31: 148954 | I31: 0 | J31: 0 | K31: 24.71 | L31: 5004 | M31: 0 | N31: 0 | O31: 0 | P31: 0 | Q31: 946.57 | R31: 225533 | S31: =SUM(S32,S35) -> 2546.14 | T31: =SUM(T32,T35) -> 582065
C32: 立木地 | D32: 総 数 | E32: =SUM(E33:E34) -> 770.96 | F32: 201145 | G32: 711.6 | H32: 146624 | I32: 0 | J32: 0 | K32: 24.27 | L32: 5004 | M32: 0 | N32: 0 | O32: 0 | P32: 0 | Q32: 890.27 | R32: 223356 | S32: =SUM(S33:S34) -> 2397.1 | T32: =SUM(T33:T34) -> 576129
D33: 人工林 | E33: 541.04 | F33: 174194 | G33: 385.43 | H33: 111103 | J33: 0 | K33: 18.75 | L33: 4572 | N33: 0 | P33: 0 | Q33: 620.4 | R33: 190589 | S33: =E33+G33+I33+K33+M33+O33+Q33 -> 1565.62 | T33: 480458
D34: 天然林 | E34: 229.92 | F34: 26951 | G34: 326.17 | H34: 35521 | J34: 0 | K34: 5.52 | L34: 432 | N34: 0 | P34: 0 | Q34: 269.87 | R34: 32767 | S34: 831.48 | T34: 95671
C35: その他 | E35: 33.81 | F35: 1429 | G35: 58.49 | H35: 2330 | J35: 0 | K35: 0.44 | L35: 0 | N35: 0 | P35: 0 | Q35: 56.3 | R35: 2177 | S35: 149.04 | T35: 5936
B36: 北相木村 | C36: 総 数 | E36: =SUM(E37,E40) -> 2284.09 | F36: =SUM(F37,F40) -> 575618 | G36: 0 | H36: 0 | I36: 0 | J36: 0 | K36: 0 | L36: 0 | M36: 0 | N36: 0 | O36: 0 | P36: 0 | Q36: 2301.4 | R36: 580517 | S36: =SUM(S37,S40) -> 4585.49 | T36: =SUM(T37,T40) -> 1156135
C37: 立木地 | D37: 総 数 | E37: =SUM(E38:E39) -> 2176.78 | F37: 573658 | G37: 0 | H37: 0 | I37: 0 | J37: 0 | K37: 0 | L37: 0 | M37: 0 | N37: 0 | O37: 0 | P37: 0 | Q37: 2193.98 | R37: 578557 | S37: =SUM(S38:S39) -> 4370.76 | T37: =SUM(T38:T39) -> 1152215
D38: 人工林 | E38: 1450.01 | F38: 474644 | H38: 0 | J38: 0 | L38: 0 | N38: 0 | P38: 0 | Q38: 1464.38 | R38: 478950 | S38: =E38+G38+I38+K38+M38+O38+Q38 -> 2914.39 | T38: 953594
D39: 天然林 | E39: 726.77 | F39: 99014 | H39: 0 | J39: 0 | L39: 0 | N39: 0 | P39: 0 | Q39: 729.6 | R39: 99607 | S39: 1456.37 | T39: 198621
C40: その他 | E40: 107.31 | F40: 1960 | H40: 0 | J40: 0 | L40: 0 | N40: 0 | P40: 0 | Q40: 107.42 | R40: 1960 | S40: 214.73 | T40: 3920
B41: 佐久穂町 | C41: 総 数 | E41: =SUM(E42,E45) -> 7417.01 | F41: =SUM(F42,F45) -> 1827291 | G41: 688.31 | H41: 154937 | I41: 0 | J41: 0 | K41: 238.1 | L41: 32370 | M41: 0 | N41: 0 | O41: 0 | P41: 0 | Q41: 2671.07 | R41: 663155 | S41: =SUM(S42,S45) -> 11014.49 | T41: =SUM(T42,T45) -> 2677753
C42: 立木地 | D42: 総 数 | E42: =SUM(E43:E44) -> 7297.97 | F42: 1827215 | G42: 669.14 | H42: 154861 | I42: 0 | J42: 0 | K42: 237.81 | L42: 32370 | M42: 0 | N42: 0 | O42: 0 | P42: 0 | Q42: 2598.28 | R42: 663155 | S42: =SUM(S43:S44) -> 10803.2 | T42: =SUM(T43:T44) -> 2677601
D43: 人工林 | E43: 4080.53 | F43: 1334378 | G43: 411.13 | H43: 122494 | J43: 0 | K43: 23.36 | L43: 7584 | N43: 0 | P43: 0 | Q43: 1775.37 | R43: 568932 | S43: =E43+G43+I43+K43+M43+O43+Q43 -> 6290.39 | T43: 2033388
D44: 天然林 | E44: 3217.44 | F44: 492837 | G44: 258.01 | H44: 32367 | J44: 0 | K44: 214.45 | L44: 24786 | N44: 0 | P44: 0 | Q44: 822.91 | R44: 94223 | S44: 4512.81 | T44: 644213
C45: その他 | E45: 119.04 | F45: 76 | G45: 19.17 | H45: 76 | J45: 0 | K45: 0.29 | L45: 0 | N45: 0 | P45: 0 | Q45: 72.79 | R45: 0 | S45: 211.29 | T45: 152
B46: 軽井沢町 | C46: 総 数 | E46: =SUM(E47,E50) -> 2461.86 | F46: =SUM(F47,F50) -> 460457 | G46: 6.25 | H46: 1150 | I46: 0 | J46: 0 | K46: 353.2 | L46: 73818 | M46: 0 | N46: 0 | O46: 0 | P46: 0 | Q46: 1024.91 | R46: 190066 | S46: =SUM(S47,S50) -> 3846.22 | T46: =SUM(T47,T50) -> 725491
C47: 立木地 | D47: 総 数 | E47: =SUM(E48:E49) -> 2449.1 | F47: 460457 | G47: 4.69 | H47: 1150 | I47: 0 | J47: 0 | K47: 352.6 | L47: 73818 | M47: 0 | N47: 0 | O47: 0 | P47: 0 | Q47: 1013.01 | R47: 190066 | S47: =SUM(S48:S49) -> 3819.4 | T47: =SUM(T48:T49) -> 725491
D48: 人工林 | E48: 896.51 | F48: 274530 | G48: 4.69 | H48: 1150 | J48: 0 | K48: 166.81 | L48: 51815 | N48: 0 | P48: 0 | Q48: 418.14 | R48: 120087 | S48: =E48+G48+I48+K48+M48+O48+Q48 -> 1486.15 | T48: 447582
D49: 天然林 | E49: 1552.59 | F49: 185927 | H49: 0 | J49: 0 | K49: 185.79 | L49: 22003 | N49: 0 | P49: 0 | Q49: 594.87 | R49: 69979 | S49: 2333.25 | T49: 277909
C50: その他 | E50: 12.76 | F50: 0 | G50: 1.56 | H50: 0 | J50: 0 | K50: 0.6 | L50: 0 | N50: 0 | P50: 0 | Q50: 11.9 | R50: 0 | S50: 26.82 | T50: 0
B51: 御代田町 | C51: 総 数 | E51: =SUM(E52,E55) -> 1066.69 | F51: =SUM(F52,F55) -> 226704 | G51: 215.63 | H51: 47676 | I51: 0 | J51: 0 | K51: 0 | L51: 0 | M51: 0 | N51: 0 | O51: 0 | P51: 0 | Q51: 539.81 | R51: 122968 | S51: =SUM(S52,S55) -> 1822.13 | T51: =SUM(T52,T55) -> 397348
C52: 立木地 | D52: 総 数 | E52: =SUM(E53:E54) -> 1046.5 | F52: 226704 | G52: 211.49 | H52: 47676 | I52: 0 | J52: 0 | K52: 0 | L52: 0 | M52: 0 | N52: 0 | O52: 0 | P52: 0 | Q52: 528.89 | R52: 122968 | S52: =SUM(S53:S54) -> 1786.88 | T52: =SUM(T53:T54) -> 397348
D53: 人工林 | E53: 561.65 | F53: 171265 | G53: 179.71 | H53: 44303 | J53: 0 | L53: 0 | N53: 0 | P53: 0 | Q53: 435.94 | R53: 112486 | S53: =E53+G53+I53+K53+M53+O53+Q53 -> 1177.3 | T53: 328054
D54: 天然林 | E54: 484.85 | F54: 55439 | G54: 31.78 | H54: 3373 | J54: 0 | L54: 0 | N54: 0 | P54: 0 | Q54: 92.95 | R54: 10482 | S54: 609.58 | T54: 69294
C55: その他 | E55: 20.19 | F55: 0 | G55: 4.14 | H55: 0 | J55: 0 | L55: 0 | N55: 0 | P55: 0 | Q55: 10.92 | R55: 0 | S55: 35.25 | T55: 0
B56: 立科町 | C56: 総 数 | E56: =SUM(E57,E60) -> 3021.19 | F56: =SUM(F57,F60) -> 635872 | G56: 43.48 | H56: 11340 | I56: 0 | J56: 0 | K56: 0 | L56: 0 | M56: 0 | N56: 0 | O56: 0 | P56: 0 | Q56: 3367.92 | R56: 715937 | S56: =SUM(S57,S60) -> 6432.59 | T56: =SUM(T57,T60) -> 1363149
C57: 立木地 | D57: 総 数 | E57: =SUM(E58:E59) -> 2973.89 | F57: 635872 | G57: 43.33 | H57: 11340 | I57: 0 | J57: 0 | K57: 0 | L57: 0 | M57: 0 | N57: 0 | O57: 0 | P57: 0 | Q57: 3317.15 | R57: 715937 | S57: =SUM(S58:S59) -> 6334.37 | T57: =SUM(T58:T59) -> 1363149
D58: 人工林 | E58: 1758.78 | F58: 470476 | G58: 33.15 | H58: 9742 | J58: 0 | L58: 0 | N58: 0 | P58: 0 | Q58: 1976.32 | R58: 528007 | S58: =E58+G58+I58+K58+M58+O58+Q58 -> 3768.25 | T58: 1008225
D59: 天然林 | E59: 1215.11 | F59: 165396 | G59: 10.18 | H59: 1598 | J59: 0 | L59: 0 | N59: 0 | P59: 0 | Q59: 1340.83 | R59: 187930 | S59: 2566.12 | T59: 354924
C60: その他 | E60: 47.3 | F60: 0 | G60: 0.15 | H60: 0 | J60: 0 | L60: 0 | N60: 0 | P60: 0 | Q60: 50.77 | S60: 98.22 | T60: 0
A61: 佐久 | B61: 佐久計 | C61: 総 数 | E61: =SUM(E6,E11,E16,E21,E26,E31,E36,E41,E46,E51,E56) -> 49535.44 | F61: =SUM(F6,F11,F16,F21,F26,F31,F36,F41,F46,F51,F56) -> 11930108 | G61: 5108.53 | H61: 1238788 | I61: 0 | J61: 0 | K61: 933.67 | L61: 176629 | M61: 0 | N61: 0 | O61: 0 | P61: 0 | Q61: 34228.97 | R61: 8420312 | S61: =SUM(S62,S65) -> 89806.61 | T61: =SUM(T62,T65) -> 21765837
C62: 立木地 | D62: 総 数 | E62: =SUM(E7,E12,E17,E22,E27,E32,E37,E42,E47,E52,E57) -> 48383.85 | F62: 11920669 | G62: 4920.6 | H62: 1236382 | I62: 0 | J62: 0 | K62: 892.26 | L62: 176629 | M62: 0 | N62: 0 | O62: 0 | P62: 0 | Q62: 33463.73 | R62: 8416037 | S62: =SUM(S63:S64) -> 87660.44 | T62: =SUM(T63:T64) -> 21749717
D63: 人工林 | E63: =SUM(E8,E13,E18,E23,E28,E33,E38,E43,E48,E53,E58) -> 29945.81 | F63: 9403619 | G63: 3529.25 | H63: 1076088 | I63: 0 | J63: 0 | K63: 342.16 | L63: 101695 | M63: 0 | N63: 0 | O63: 0 | P63: 0 | Q63: 22807.95 | R63: 7044328 | S63: =E63+G63+I63+K63+M63+O63+Q63 -> 56625.17 | T63: 17625730
D64: 天然林 | E64: =SUM(E9,E14,E19,E24,E29,E34,E39,E44,E49,E54,E59) -> 18438.04 | F64: 2517050 | G64: 1391.35 | H64: 160294 | I64: 0 | J64: 0 | K64: 550.1 | L64: 74934 | M64: 0 | N64: 0 | O64: 0 | P64: 0 | Q64: 10655.78 | R64: 1371709 | S64: 31035.27 | T64: 4123987
C65: その他 | E65: =SUM(E10,E15,E20,E25,E30,E35,E40,E45,E50,E55,E60) -> 1151.59 | F65: 9439 | G65: 187.93 | H65: 2406 | I65: 0 | J65: 0 | K65: 41.41 | L65: 0 | M65: 0 | N65: 0 | O65: 0 | P65: 0 | Q65: 765.24 | R65: 4275 | S65: 2146.17 | T65: 16120
A66: 上田 | B66: 上田市 | C66: 総 数 | E66: =SUM(E67,E70) -> 22828.13 | F66: =SUM(F67,F70) -> 5198018 | G66: 7564.45 | H66: 1655591 | I66: 0 | J66: 0 | K66: 383.43 | L66: 99655 | M66: 0 | N66: 0 | O66: 0 | P66: 0 | Q66: 27322.97 | R66: 6064755 | S66: =SUM(S67,S70) -> 58098.98 | T66: =SUM(T67,T70) -> 13018019
C67: 立木地 | D67: 総 数 | E67: =SUM(E68:E69) -> 21963.45 | F67: 5160360 | G67: 7207.26 | H67: 1641478 | I67: 0 | J67: 0 | K67: 372.84 | L67: 99655 | M67: 0 | N67: 0 | O67: 0 | P67: 0 | Q67: 26377.33 | R67: 6027074 | S67: =SUM(S68:S69) -> 55920.88 | T67: =SUM(T68:T69) -> 12928567
D68: 人工林 | E68: 12051.82 | F68: 3787090 | G68: 3697.73 | H68: 1126638 | J68: 0 | K68: 176.38 | L68: 53596 | N68: 0 | P68: 0 | Q68: 13690.13 | R68: 4236048 | S68: =E68+G68+I68+K68+M68+O68+Q68 -> 29616.06 | T68: 9203372
D69: 天然林 | E69: 9911.63 | F69: 1373270 | G69: 3509.53 | H69: 514840 | J69: 0 | K69: 196.46 | L69: 46059 | N69: 0 | P69: 0 | Q69: 12687.2 | R69: 1791026 | S69: 26304.82 | T69: 3725195
C70: その他 | E70: 864.68 | F70: 37658 | G70: 357.19 | H70: 14113 | J70: 0 | K70: 10.59 | L70: 0 | N70: 0 | P70: 0 | Q70: 945.64 | R70: 37681 | S70: 2178.1 | T70: 89452
B71: 東御市 | C71: 総 数 | E71: =SUM(E72,E75) -> 572.23 | F71: =SUM(F72,F75) -> 125781 | G71: 619.51 | H71: 122376 | I71: 0 | J71: 0 | K71: 11.17 | L71: 2730 | M71: 0 | N71: 0 | O71: 34.34 | P71: 6238 | Q71: 1587.84 | R71: 334122 | S71: =SUM(S72,S75) -> 2825.09 | T71: =SUM(T72,T75) -> 591247
C72: 立木地 | D72: 総 数 | E72: =SUM(E73:E74) -> 562.32 | F72: 125781 | G72: 610.37 | H72: 121647 | I72: 0 | J72: 0 | K72: 11.09 | L72: 2730 | M72: 0 | N72: 0 | O72: 34.11 | P72: 6238 | Q72: 1564.97 | R72: 334122 | S72: =SUM(S73:S74) -> 2782.86 | T72: =SUM(T73:T74) -> 590518
D73: 人工林 | E73: 440.68 | F73: 112961 | G73: 322.86 | H73: 83719 | J73: 0 | K73: 3.75 | L73: 1100 | N73: 0 | O73: 6.7 | P73: 2012 | Q73: 962.44 | R73: 257362 | S73: =E73+G73+I73+K73+M73+O73+Q73 -> 1736.43 | T73: 457154
D74: 天然林 | E74: 121.64 | F74: 12820 | G74: 287.51 | H74: 37928 | J74: 0 | K74: 7.34 | L74: 1630 | N74: 0 | O74: 27.41 | P74: 4226 | Q74: 602.53 | R74: 76760 | S74: 1046.43 | T74: 133364
C75: その他 | E75: 9.91 | F75: 0 | G75: 9.14 | H75: 729 | J75: 0 | K75: 0.08 | L75: 0 | N75: 0 | O75: 0.23 | P75: 0 | Q75: 22.87 | R75: 0 | S75: 42.23 | T75: 729
B76: 青木村 | C76: 総 数 | E76: =SUM(E77,E80) -> 3263.32 | F76: =SUM(F77,F80) -> 845713 | G76: 1071.8 | H76: 267580 | I76: 52.57 | J76: 10432 | K76: 33.66 | L76: 7057 | M76: 0 | N76: 0 | O76: 0 | P76: 0 | Q76: 3604.19 | R76: 917107 | S76: =SUM(S77,S80) -> 8025.54 | T76: =SUM(T77,T80) -> 2047889
C77: 立木地 | D77: 総 数 | E77: =SUM(E78:E79) -> 3209.62 | F77: 845713 | G77: 1055.14 | H77: 267580 | I77: 52.57 | J77: 10432 | K77: 33.36 | L77: 7057 | M77: 0 | N77: 0 | O77: 0 | P77: 0 | Q77: 3542.54 | R77: 917107 | S77: =SUM(S78:S79) -> 7893.23 | T77: =SUM(T78:T79) -> 2047889
D78: 人工林 | E78: 2073.26 | F78: 664135 | G78: 677.74 | H78: 204294 | I78: 25.78 | J78: 7464 | K78: 11.79 | L78: 3662 | N78: 0 | P78: 0 | Q78: 2253.65 | R78: 710188 | S78: =E78+G78+I78+K78+M78+O78+Q78 -> 5042.22 | T78: 1589743
D79: 天然林 | E79: 1136.36 | F79: 181578 | G79: 377.4 | H79: 63286 | I79: 26.79 | J79: 2968 | K79: 21.57 | L79: 3395 | N79: 0 | P79: 0 | Q79: 1288.89 | R79: 206919 | S79: 2851.01 | T79: 458146
C80: その他 | E80: 53.7 | F80: 0 | G80: 16.66 | H80: 0 | J80: 0 | K80: 0.3 | L80: 0 | N80: 0 | P80: 0 | Q80: 61.65 | R80: 0 | S80: 132.31 | T80: 0
B81: 長和町 | C81: 総 数 | E81: =SUM(E82,E85) -> 2342.67 | F81: =SUM(F82,F85) -> 551902 | G81: 1197.41 | H81: 298138 | I81: 0 | J81: 0 | K81: 304.32 | L81: 70252 | M81: 0 | N81: 0 | O81: 0 | P81: 0 | Q81: 7567.35 | R81: 1846695 | S81: =SUM(S82,S85) -> 11411.75 | T81: =SUM(T82,T85) -> 2766987
C82: 立木地 | D82: 総 数 | E82: =SUM(E83:E84) -> 2266.46 | F82: 551902 | G82: 1176.86 | H82: 298138 | I82: 0 | J82: 0 | K82: 289.39 | L82: 70252 | M82: 0 | N82: 0 | O82: 0 | P82: 0 | Q82: 7367.37 | R82: 1846695 | S82: =SUM(S83:S84) -> 11100.08 | T82: =SUM(T83:T84) -> 2766987
D83: 人工林 | E83: 1501.63 | F83: 451765 | G83: 743.6 | H83: 229661 | J83: 0 | K83: 208.69 | L83: 61471 | N83: 0 | P83: 0 | Q83: 4734.12 | R83: 1472841 | S83: =E83+G83+I83+K83+M83+O83+Q83 -> 7188.04 | T83: 2215738
D84: 天然林 | E84: 764.83 | F84: 100137 | G84: 433.26 | H84: 68477 | J84: 0 | K84: 80.7 | L84: 8781 | N84: 0 | P84: 0 | Q84: 2633.25 | R84: 373854 | S84: 3912.04 | T84: 551249
C85: その他 | E85: 76.21 | F85: 0 | G85: 20.55 | H85: 0 | J85: 0 | K85: 14.93 | L85: 0 | N85: 0 | P85: 0 | Q85: 199.98 | R85: 0 | S85: 311.67 | T85: 0
B86: 上田計 | C86: 総 数 | E86: =SUM(E66,E71,E76,E81) -> 29006.35 | F86: =SUM(F66,F71,F76,F81) -> 6721414 | G86: 10453.17 | H86: 2343685 | I86: 52.57 | J86: 10432 | K86: 732.58 | L86: 179694 | M86: 0 | N86: 0 | O86: 34.34 | P86: 6238 | Q86: 40082.35 | R86: 9162679 | S86: =SUM(S87,S90) -> 80361.36 | T86: =SUM(T87,T90) -> 18424142
C87: 立木地 | D87: 総 数 | E87: =SUM(E67,E72,E77,E82) -> 28001.85 | F87: 6683756 | G87: 10049.63 | H87: 2328843 | I87: 52.57 | J87: 10432 | K87: 706.68 | L87: 179694 | M87: 0 | N87: 0 | O87: 34.11 | P87: 6238 | Q87: 38852.21 | R87: 9124998 | S87: =SUM(S88:S89) -> 77697.05 | T87: =SUM(T88:T89) -> 18333961
D88: 人工林 | E88: =SUM(E68,E73,E78,E83) -> 16067.39 | F88: 5015951 | G88: 5441.93 | H88: 1644312 | I88: 25.78 | J88: 7464 | K88: 400.61 | L88: 119829 | M88: 0 | N88: 0 | O88: 6.7 | P88: 2012 | Q88: 21640.34 | R88: 6676439 | S88: =E88+G88+I88+K88+M88+O88+Q88 -> 43582.75 | T88: 13466007
D89: 天然林 | E89: =SUM(E69,E74,E79,E84) -> 11934.46 | F89: 1667805 | G89: 4607.7 | H89: 684531 | I89: 26.79 | J89: 2968 | K89: 306.07 | L89: 59865 | M89: 0 | N89: 0 | O89: 27.41 | P89: 4226 | Q89: 17211.87 | R89: 2448559 | S89: 34114.3 | T89: 4867954
C90: その他 | E90: =SUM(E70,E75,E80,E85) -> 1004.5 | F90: 37658 | G90: 403.54 | H90: 14842 | I90: 0 | J90: 0 | K90: 25.9 | L90: 0 | M90: 0 | N90: 0 | O90: 0.23 | P90: 0 | Q90: 1230.14 | R90: 37681 | S90: 2664.31 | T90: 90181
A91: 計画区計 | C91: 総 数 | E91: =SUM(E61,E86,) -> 78541.79 | F91: =SUM(F61,F86,) -> 18651522 | G91: 15561.7 | H91: 3582473 | I91: 52.57 | J91: 10432 | K91: 1666.25 | L91: 356323 | M91: 0 | N91: 0 | O91: 34.34 | P91: 6238 | Q91: 74311.32 | R91: 17582991 | S91: =SUM(S92,S95) -> 170167.97 | T91: =SUM(T92,T95) -> 40189979
C92: 立木地 | D92: 総 数 | E92: =SUM(E62,E87,) -> 76385.7 | F92: 18604425 | G92: 14970.23 | H92: 3565225 | I92: 52.57 | J92: 10432 | K92: 1598.94 | L92: 356323 | M92: 0 | N92: 0 | O92: 34.11 | P92: 6238 | Q92: 72315.94 | R92: 17541035 | S92: =SUM(S93:S94) -> 165357.49 | T92: =SUM(T93:T94) -> 40083678
D93: 人工林 | E93: =SUM(E63,E88,) -> 46013.2 | F93: 14419570 | G93: 8971.18 | H93: 2720400 | I93: 25.78 | J93: 7464 | K93: 742.77 | L93: 221524 | M93: 0 | N93: 0 | O93: 6.7 | P93: 2012 | Q93: 44448.29 | R93: 13720767 | S93: =E93+G93+I93+K93+M93+O93+Q93 -> 100207.92 | T93: 31091737
D94: 天然林 | E94: =SUM(E64,E89,) -> 30372.5 | F94: 4184855 | G94: 5999.05 | H94: 844825 | I94: 26.79 | J94: 2968 | K94: 856.17 | L94: 134799 | M94: 0 | N94: 0 | O94: 27.41 | P94: 4226 | Q94: 27867.65 | R94: 3820268 | S94: 65149.57 | T94: 8991941
C95: その他 | E95: =SUM(E65,E90,) -> 2156.09 | F95: 47097 | G95: 591.47 | H95: 17248 | I95: 0 | J95: 0 | K95: 67.31 | L95: 0 | M95: 0 | N95: 0 | O95: 0.23 | P95: 0 | Q95: 1995.38 | R95: 41956 | S95: 4810.48 | T95: 106301
Q96: 153933.4 | R96: 35920716

Sheet 伊那谷
A1: 第10-1表 市町村別・公益的機能別施業森林等区分別ゾーニング別・資源表
R2: （単位 面積：ha 蓄積：m3）
A3: 地域振興局 | B3: 市町村名 | C3: 区 分 | E3: 公益的機能別施業森林等区分別
E4: 水かん | G4: 山災/土壌 | I4: 快適環境 | K4: 保健 | M4: 文化 | O4: 独自 | Q4: 木材 | S4: 総数
E5: 面積 | F5: 蓄積 | G5: 面積 | H5: 蓄積 | I5: 面積 | J5: 蓄積 | K5: 面積 | L5: 蓄積 | M5: 面積 | N5: 蓄積 | O5: 面積 | P5: 蓄積 | Q5: 面積 | R5: 蓄積 | S5: 面積 | T5: 蓄積
A6: 諏訪 | B6: 岡谷市 | C6: 総 数 | E6: =SUM(E7,E10) -> 1409.2 | F6: =SUM(F7,F10) -> 315934 | G6: 5157.91 | H6: 1196308 | I6: 0 | J6: 0 | K6: 200.37 | L6: 15879 | M6: 0 | N6: 0 | O6: 0 | P6: 0 | Q6: 5473.88 | R6: 1291615 | S6: =SUM(S7,S10) -> 12241.36 | T6: =SUM(T7,T10) -> 2819736
C7: 立木地 | D7: 総 数 | E7: =SUM(E8:E9) -> 1397.7 | F7: 315934 | G7: 5023.91 | H7: 1196308 | I7: 0 | J7: 0 | K7: 116.35 | L7: 15879 | M7: 0 | N7: 0 | O7: 0 | P7: 0 | Q7: 5379.59 | R7: 1291615 | S7: =SUM(S8:S9) -> 11917.55 | T7: =SUM(T8:T9) -> 2819736
D8: 人工林 | E8: 1216.6 | F8: 285118 | G8: 3563.22 | H8: 907586 | J8: 0 | K8: 33.44 | L8: 7634 | N8: 0 | P8: 0 | Q8: 3765.9 | R8: 965781 | S8: =E8+G8+I8+K8+M8+O8+Q8 -> 8579.16 | T8: 2166119
D9: 天然林 | E9: 181.1 | F9: 30816 | G9: 1460.69 | H9: 288722 | J9: 0 | K9: 82.91 | L9: 8245 | N9: 0 | P9: 0 | Q9: 1613.69 | R9: 325834 | S9: 3338.39 | T9: 653617
C10: その他 | E10: 11.5 | F10: 0 | G10: 134 | H10: 0 | J10: 0 | K10: 84.02 | L10: 0 | N10: 0 | P10: 0 | Q10: 94.29 | R10: 0 | S10: 323.81 | T10: 0
B11: 諏訪市 | C11: 総 数 | E11: =SUM(E12,E15) -> 5558.37 | F11: =SUM(F12,F15) -> 1232183 | G11: 5558.37 | H11: 1232183 | I11: 0 | J11: 0 | K11: 1243.51 | L11: 129706 | M11: 0 | N11: 0 | O11: 0 | P11: 0 | Q11: 454.06 | R11: 123793 | S11: =SUM(S12,S15) -> 12814.31 | T11: =SUM(T12,T15) -> 2717865
C12: 立木地 | D12: 総 数 | E12: =SUM(E13:E14) -> 5331.74 | F12: 1232183 | G12: 5331.74 | H12: 1232183 | I12: 0 | J12: 0 | K12: 592.14 | L12: 129706 | M12: 0 | N12: 0 | O12: 0 | P12: 0 | Q12: 445.45 | R12: 123793 | S12: =SUM(S13:S14) -> 11701.07 | T12: =SUM(T13:T14) -> 2717865
D13: 人工林 | E13: 3309.58 | F13: 898419 | G13: 3309.58 | H13: 898419 | J13: 0 | K13: 468.13 | L13: 118337 | N13: 0 | P13: 0 | Q13: 329.26 | R13: 99240 | S13: =E13+G13+I13+K13+M13+O13+Q13 -> 7416.55 | T13: 2014415
D14: 天然林 | E14: 2022.16 | F14: 333764 | G14: 2022.16 | H14: 333764 | J14: 0 | K14: 124.01 | L14: 11369 | N14: 0 | P14: 0 | Q14: 116.19 | R14: 24553 | S14: 4284.52 | T14: 703450
C15: その他 | E15: 226.63 | F15: 0 | G15: 226.63 | H15: 0 | J15: 0 | K15: 651.37 | L15: 0 | N15: 0 | P15: 0 | Q15: 8.61 | R15: 0 | S15: 1113.24 | T15: 0
B16: 茅野市 | C16: 総 数 | E16: =SUM(E17,E20) -> 2828.78 | F16: =SUM(F17,F20) -> 454600 | G16: 1519.1 | H16: 327630 | I16: 5189.74 | J16: 1017571 | K16: 730.9 | L16: 172618 | M16: 0 | N16: 0 | O16: 0 | P16: 0 | Q16: 5151.48 | R16: 913913 | S16: =SUM(S17,S20) -> 15420 | T16: =SUM(T17,T20) -> 2886332
C17: 立木地 | D17: 総 数 | E17: =SUM(E18:E19) -> 2720.05 | F17: 454600 | G17: 1487.93 | H17: 327630 | I17: 4913.86 | J17: 1017571 | K17: 725.7 | L17: 172618 | M17: 0 | N17: 0 | O17: 0 | P17: 0 | Q17: 4857.7 | R17: 913913 | S17: =SUM(S18:S19) -> 14705.24 | T17: =SUM(T18:T19) -> 2886332
D18: 人工林 | E18: 866.28 | F18: 199498 | G18: 747.21 | H18: 211126 | I18: 2456.33 | J18: 675967 | K18: 389.09 | L18: 110421 | N18: 0 | P18: 0 | Q18: 2185.46 | R18: 573887 | S18: =E18+G18+I18+K18+M18+O18+Q18 -> 6644.37 | T18: 1770899
D19: 天然林 | E19: 1853.77 | F19: 255102 | G19: 740.72 | H19: 116504 | I19: 2457.53 | J19: 341604 | K19: 336.61 | L19: 62197 | N19: 0 | P19: 0 | Q19: 2672.24 | R19: 340026 | S19: 8060.87 | T19: 1115433
C20: その他 | E20: 108.73 | F20: 0 | G20: 31.17 | H20: 0 | I20: 275.88 | J20: 0 | K20: 5.2 | L20: 0 | N20: 0 | P20: 0 | Q20: 293.78 | R20: 0 | S20: 714.76 | T20: 0
B21: 下諏訪町 | C21: 総 数 | E21: =SUM(E22,E25) -> 3195.01 | F21: =SUM(F22,F25) -> 646477 | G21: 478.03 | H21: 110979 | I21: 330.52 | J21: 81476 | K21: 47.15 | L21: 11608 | M21: 0 | N21: 0 | O21: 0 | P21: 0 | Q21: 2528.94 | R21: 565505 | S21: =SUM(S22,S25) -> 6579.65 | T21: =SUM(T22,T25) -> 1416045
C22: 立木地 | D22: 総 数 | E22: =SUM(E23:E24) -> 3085.75 | F22: 646477 | G22: 464.93 | H22: 110979 | I22: 324.38 | J22: 81476 | K22: 46.43 | L22: 11608 | M22: 0 | N22: 0 | O22: 0 | P22: 0 | Q22: 2466.9 | R22: 565505 | S22: =SUM(S23:S24) -> 6388.39 | T22: =SUM(T23:T24) -> 1416045
D23: 人工林 | E23: 1860.01 | F23: 491605 | G23: 239.41 | H23: 74922 | I23: 176.45 | J23: 54901 | K23: 45.46 | L23: 11545 | N23: 0 | P23: 0 | Q23: 1489.54 | R23: 421732 | S23: =E23+G23+I23+K23+M23+O23+Q23 -> 3810.87 | T23: 1054705
D24: 天然林 | E24: 1225.74 | F24: 154872 | G24: 225.52 | H24: 36057 | I24: 147.93 | J24: 26575 | K24: 0.97 | L24: 63 | N24: 0 | P24: 0 | Q24: 977.36 | R24: 143773 | S24: 2577.52 | T24: 361340
C25: その他 | E25: 109.26 | F25: 0 | G25: 13.1 | H25: 0 | I25: 6.14 | J25: 0 | K25: 0.72 | L25: 0 | N25: 0 | P25: 0 | Q25: 62.04 | R25: 0 | S25: 191.26 | T25: 0
B26: 富士見町 | C26: 総 数 | E26: =SUM(E27,E30) -> 3064.08 | F26: =SUM(F27,F30) -> 621764 | G26: 4110.65 | H26: 968976 | I26: 743.8 | J26: 192420 | K26: 24.96 | L26: 4957 | M26: 0 | N26: 0 | O26: 0 | P26: 0 | Q26: 87.44 | R26: 22355 | S26: =SUM(S27,S30) -> 8030.93 | T26: =SUM(T27,T30) -> 1810472
C27: 立木地 | D27: 総 数 | E27: =SUM(E28:E29) -> 2940.44 | F27: 621535 | G27: 3978.68 | H27: 968976 | I27: 732 | J27: 192420 | K27: 24.54 | L27: 4957 | M27: 0 | N27: 0 | O27: 0 | P27: 0 | Q27: 87.09 | R27: 22355 | S27: =SUM(S28:S29) -> 7762.75 | T27: =SUM(T28:T29) -> 1810243
D28: 人工林 | E28: 1484.55 | F28: 402921 | G28: 2271.54 | H28: 646230 | I28: 418.64 | J28: 126174 | K28: 4.12 | L28: 1174 | N28: 0 | P28: 0 | Q28: 77.1 | R28: 19960 | S28: =E28+G28+I28+K28+M28+O28+Q28 -> 4255.95 | T28: 1196459
D29: 天然林 | E29: 1455.89 | F29: 218614 | G29: 1707.14 | H29: 322746 | I29: 313.36 | J29: 66246 | K29: 20.42 | L29: 3783 | N29: 0 | P29: 0 | Q29: 9.99 | R29: 2395 | S29: 3506.8 | T29: 613784
C30: その他 | E30: 123.64 | F30: 229 | G30: 131.97 | H30: 0 | I30: 11.8 | J30: 0 | K30: 0.42 | L30: 0 | N30: 0 | P30: 0 | Q30: 0.35 | R30: 0 | S30: 268.18 | T30: 229
B31: 原村 | C31: 総 数 | E31: =SUM(E32,E35) -> 836.21 | F31: =SUM(F32,F35) -> 171472 | G31: 165.94 | H31: 29558 | I31: 669.18 | J31: 126548 | K31: 0 | L31: 0 | M31: 282.22 | N31: 30307 | O31: 0 | P31: 0 | Q31: 468.5 | R31: 90251 | S31: =SUM(S32,S35) -> 2422.05 | T31: =SUM(T32,T35) -> 448136
C32: 立木地 | D32: 総 数 | E32: =SUM(E33:E34) -> 795.46 | F32: 171472 | G32: 161.38 | H32: 29558 | I32: 653.53 | J32: 126548 | K32: 0 | L32: 0 | M32: 223.12 | N32: 30307 | O32: 0 | P32: 0 | Q32: 437.09 | R32: 90251 | S32: =SUM(S33:S34) -> 2270.58 | T32: =SUM(T33:T34) -> 448136
D33: 人工林 | E33: 504.31 | F33: 119465 | G33: 123.29 | H33: 24182 | I33: 316.27 | J33: 77978 | L33: 0 | M33: 31.24 | N33: 5470 | P33: 0 | Q33: 361.94 | R33: 78845 | S33: =E33+G33+I33+K33+M33+O33+Q33 -> 1337.05 | T33: 305940
D34: 天然林 | E34: 291.15 | F34: 52007 | G34: 38.09 | H34: 5376 | I34: 337.26 | J34: 48570 | L34: 0 | M34: 191.88 | N34: 24837 | P34: 0 | Q34: 75.15 | R34: 11406 | S34: 933.53 | T34: 142196
C35: その他 | E35: 40.75 | F35: 0 | G35: 4.56 | H35: 0 | I35: 15.65 | J35: 0 | L35: 0 | M35: 59.1 | N35: 0 | P35: 0 | Q35: 31.41 | R35: 0 | S35: 151.47 | T35: 0
B36: 諏訪計 | C36: 総 数 | E36: =SUM(E6,E11,E16,E21,E26,E31) -> 16891.65 | F36: =SUM(F6,F11,F16,F21,F26,F31) -> 3442430 | G36: 16990 | H36: 3865634 | I36: 6933.24 | J36: 1418015 | K36: 2246.89 | L36: 334768 | M36: 282.22 | N36: 30307 | O36: 0 | P36: 0 | Q36: 14164.3 | R36: 3007432 | S36: =SUM(S37,S40) -> 57508.3 | T36: =SUM(T37,T40) -> 12098586
C37: 立木地 | D37: 総 数 | E37: =SUM(E7,E12,E17,E22,E27,E32) -> 16271.14 | F37: 3442201 | G37: 16448.57 | H37: 3865634 | I37: 6623.77 | J37: 1418015 | K37: 1505.16 | L37: 334768 | M37: 223.12 | N37: 30307 | O37: 0 | P37: 0 | Q37: 13673.82 | R37: 3007432 | S37: =SUM(S38:S39) -> 54745.58 | T37: =SUM(T38:T39) -> 12098357
D38: 人工林 | E38: =SUM(E8,E13,E18,E23,E28,E33) -> 9241.33 | F38: 2397026 | G38: 10254.25 | H38: 2762465 | I38: 3367.69 | J38: 935020 | K38: 940.24 | L38: 249111 | M38: 31.24 | N38: 5470 | O38: 0 | P38: 0 | Q38: 8209.2 | R38: 2159445 | S38: =E38+G38+I38+K38+M38+O38+Q38 -> 32043.95 | T38: =F38+H38+J38+L38+N38+P38+R38 -> 8508537
D39: 天然林 | E39: =SUM(E9,E14,E19,E24,E29,E34) -> 7029.81 | F39: 1045175 | G39: 6194.32 | H39: 1103169 | I39: 3256.08 | J39: 482995 | K39: 564.92 | L39: 85657 | M39: 191.88 | N39: 24837 | O39: 0 | P39: 0 | Q39: 5464.62 | R39: 847987 | S39: 22701.63 | T39: 3589820
C40: その他 | E40: =SUM(E10,E15,E20,E25,E30,E35) -> 620.51 | F40: 229 | G40: 541.43 | H40: 0 | I40: 309.47 | J40: 0 | K40: 741.73 | L40: 0 | M40: 59.1 | N40: 0 | O40: 0 | P40: 0 | Q40: 490.48 | R40: 0 | S40: =E40+G40+I40+K40+M40+O40+Q40 -> 2762.72 | T40: 229
A41: 上伊那 | B41: 伊那市 | C41: 総 数 | E41: =SUM(E42,E45) -> 10374.23 | F41: =SUM(F42,F45) -> 2149486 | G41: 8445.99 | H41: 1809066 | I41: 0 | J41: 0 | K41: 1063.27 | L41: 195484 | M41: 0 | N41: 0 | O41: 0 | P41: 0 | Q41: 24977.91 | R41: 5501972 | S41: =SUM(S42,S45) -> 767191.2 | T41: =SUM(T42,T45) -> 9656008
C42: 立木地 | D42: 総 数 | E42: =SUM(E43:E44) -> 10192.38 | F42: 2148494 | G42: 8243.73 | H42: 1808059 | I42: 0 | J42: 0 | K42: 1030.69 | L42: 195484 | M42: 0 | N42: 0 | O42: 0 | P42: 0 | Q42: 24540.4 | R42: 5500980 | S42: =SUM(S43:S44) -> 44007.2 | T42: =SUM(T43:T44) -> 9653017
D43: 人工林 | E43: 7138.57 | F43: 1704056 | G43: 5286.81 | H43: 1360431 | J43: 0 | K43: 336.14 | L43: 88163 | N43: 0 | P43: 0 | Q43: 16069.04 | R43: 4130989 | S43: =E43+G43+I43+K43+M43+O43+Q43 -> 28830.56 | T43: 7283639
D44: 天然林 | E44: 3053.81 | F44: 444438 | G44: 2956.92 | H44: 447628 | J44: 0 | K44: 694.55 | L44: 107321 | N44: 0 | P44: 0 | Q44: 8471.36 | R44: 1369991 | S44: 15176.64 | T44: 2369378
C45: その他 | E45: 181.85 | F45: 992 | G45: 202.26 | H45: 1007 | J45: 0 | K45: 32.58 | L45: 0 | N45: 0 | P45: 0 | Q45: 437.51 | R45: 992 | S45: 723184 | T45: 2991
B46: 駒ヶ根市 | C46: 総 数 | E46: =SUM(E47,E50) -> 2553.48 | F46: =SUM(F47,F50) -> 512258 | G46: 982.25 | H46: 198343 | I46: 0 | J46: 0 | K46: 440.39 | L46: 85704 | M46: 17.86 | N46: 5966 | O46: 0 | P46: 0 | Q46: 3597.46 | R46: 802966 | S46: 180874 | T46: =SUM(T47,T50) -> 1605237
C47: 立木地 | D47: 総 数 | E47: =SUM(E48:E49) -> 2475.36 | F47: 512258 | G47: 934.64 | H47: 198343 | I47: 0 | J47: 0 | K47: 434.36 | L47: 85704 | M47: 17.8 | N47: 5966 | O47: 0 | P47: 0 | Q47: 3544.13 | R47: 802966 | S47: 0 | T47: =SUM(T48:T49) -> 1605237
D48: 人工林 | E48: 1766.29 | F48: 415540 | G48: 537.34 | H48: 136509 | J48: 0 | K48: 221.35 | L48: 54296 | M48: 12.51 | N48: 4243 | P48: 0 | Q48: 1990.35 | R48: 516044 | S48: =E48+G48+I48+K48+M48+O48+Q48 -> 4527.84 | T48: 1126632
D49: 天然林 | E49: 709.07 | F49: 96718 | G49: 397.3 | H49: 61834 | J49: 0 | K49: 213.01 | L49: 31408 | M49: 5.29 | N49: 1723 | P49: 0 | Q49: 1553.78 | R49: 286922 | S49: 2878.45 | T49: 478605
C50: その他 | E50: 78.12 | F50: 0 | G50: 47.61 | H50: 0 | J50: 0 | K50: 6.03 | L50: 0 | M50: 0.06 | N50: 0 | P50: 0 | Q50: 53.33 | R50: 0 | S50: 185.15 | T50: 0
B51: 辰野町 | C51: 総 数 | E51: =SUM(E52,E55) -> 2849.68 | F51: =SUM(F52,F55) -> 661304 | G51: 2719.9 | H51: 651456 | I51: 0 | J51: 0 | K51: 163.62 | L51: 41029 | M51: 0 | N51: 0 | O51: 0 | P51: 0 | Q51: 5644.63 | R51: 1367423 | S51: =SUM(S52,S55) -> 11377.83 | T51: =SUM(T52,T55) -> 2721212
C52: 立木地 | D52: 総 数 | E52: =SUM(E53:E54) -> 2811.51 | F52: 661304 | G52: 2673.34 | H52: 651456 | I52: 0 | J52: 0 | K52: 162.75 | L52: 41029 | M52: 0 | N52: 0 | O52: 0 | P52: 0 | Q52: 5567.67 | R52: 1367423 | S52: =SUM(S53:S54) -> 11215.27 | T52: =SUM(T53:T54) -> 2721212
D53: 人工林 | E53: 2002.4 | F53: 500514 | G53: 1663.36 | H53: 447878 | J53: 0 | K53: 116.79 | L53: 30229 | N53: 0 | P53: 0 | Q53: 4101.79 | R53: 1076761 | S53: =E53+G53+I53+K53+M53+O53+Q53 -> 7884.34 | T53: 2055382
D54: 天然林 | E54: 809.11 | F54: 160790 | G54: 1009.98 | H54: 203578 | J54: 0 | K54: 45.96 | L54: 10800 | N54: 0 | P54: 0 | Q54: 1465.88 | R54: 290662 | S54: 3330.93 | T54: 665830
C55: その他 | E55: 38.17 | F55: 0 | G55: 46.56 | H55: 0 | J55: 0 | K55: 0.87 | L55: 0 | N55: 0 | P55: 0 | Q55: 76.96 | R55: 0 | S55: 162.56 | T55: 0
B56: 箕輪町 | C56: 総 数 | E56: =SUM(E57,E60) -> 3605.39 | F56: =SUM(F57,F60) -> 826546 | G56: 1413.5 | H56: 315235 | I56: 0 | J56: 0 | K56: 441.04 | L56: 104502 | M56: 2.67 | N56: 587 | O56: 0 | P56: 0 | Q56: 4051.25 | R56: 950967 | S56: =SUM(S57,S60) -> 9513.85 | T56: =SUM(T57,T60) -> 2197837
C57: 立木地 | D57: 総 数 | E57: =SUM(E58:E59) -> 3563.34 | F57: 826546 | G57: 1404.35 | H57: 315235 | I57: 0 | J57: 0 | K57: 440.11 | L57: 104502 | M57: 2.67 | N57: 587 | O57: 0 | P57: 0 | Q57: 4005.88 | R57: 950967 | S57: =SUM(S58:S59) -> 9416.35 | T57: =SUM(T58:T59) -> 2197837
D58: 人工林 | E58: 2565.94 | F58: 665174 | G58: 856.18 | H58: 221218 | J58: 0 | K58: 273.96 | L58: 73002 | M58: 0.99 | N58: 237 | P58: 0 | Q58: 2891.89 | R58: 763171 | S58: =E58+G58+I58+K58+M58+O58+Q58 -> 6588.96 | T58: 1722802
D59: 天然林 | E59: 997.4 | F59: 161372 | G59: 548.17 | H59: 94017 | J59: 0 | K59: 166.15 | L59: 31500 | M59: 1.68 | N59: 350 | P59: 0 | Q59: 1113.99 | R59: 187796 | S59: 2827.39 | T59: 475035
C60: その他 | E60: 42.05 | F60: 0 | G60: 9.15 | H60: 0 | J60: 0 | K60: 0.93 | L60: 0 | N60: 0 | P60: 0 | Q60: 45.37 | R60: 0 | S60: 97.5 | T60: 0
A61: 上伊那 | B61: 飯島町 | C61: 総 数 | E61: =SUM(E62,E65) -> 966.75 | F61: =SUM(F62,F65) -> 179654 | G61: 669.3 | H61: 136382 | I61: 0 | J61: 0 | K61: 143.49 | L61: 25540 | M61: 0 | N61: 0 | O61: 0 | P61: 0 | Q61: 2058.76 | R61: 412453 | S61: =SUM(S62,S65) -> 3838.3 | T61: =SUM(T62,T65) -> 754029
C62: 立木地 | D62: 総 数 | E62: =SUM(E63:E64) -> 916.7 | F62: 179654 | G62: 645.48 | H62: 136382 | I62: 0 | J62: 0 | K62: 134.46 | L62: 25540 | M62: 0 | N62: 0 | O62: 0 | P62: 0 | Q62: 1965.81 | R62: 412453 | S62: =SUM(S63:S64) -> 3662.45 | T62: =SUM(T63:T64) -> 754029
D63: 人工林 | E63: 504.38 | F63: 126310 | G63: 377.62 | H63: 93716 | J63: 0 | K63: 37.61 | L63: 10199 | N63: 0 | P63: 0 | Q63: 1048.32 | R63: 266256 | S63: =E63+G63+I63+K63+M63+O63+Q63 -> 1967.93 | T63: 496481
D64: 天然林 | E64: 412.32 | F64: 53344 | G64: 267.86 | H64: 42666 | J64: 0 | K64: 96.85 | L64: 15341 | N64: 0 | P64: 0 | Q64: 917.49 | R64: 146197 | S64: 1694.52 | T64: 257548
C65: その他 | E65: 50.05 | F65: 0 | G65: 23.82 | H65: 0 | J65: 0 | K65: 9.03 | L65: 0 | N65: 0 | P65: 0 | Q65: 92.95 | R65: 0 | S65: 175.85 | T65: 0
B66: 南箕輪村 | C66: 総 数 | E66: =SUM(E67,E70) -> 1739.14 | F66: =SUM(F67,F70) -> 359418 | G66: 1032.31 | H66: 209798 | I66: 92.93 | J66: 30862 | K66: 88.35 | L66: 36791 | M66: 5.08 | N66: 1272 | O66: 0 | P66: 0 | Q66: 1854.91 | R66: 412368 | S66: =SUM(S67,S70) -> 4812.72 | T66: =SUM(T67,T70) -> 1050509
C67: 立木地 | D67: 総 数 | E67: =SUM(E68:E69) -> 1710.18 | F67: 359418 | G67: 1004.61 | H67: 209798 | I67: 91.76 | J67: 30862 | K67: 88.35 | L67: 36791 | M67: 5.08 | N67: 1272 | O67: 0 | P67: 0 | Q67: 1822.38 | R67: 412368 | S67: =SUM(S68:S69) -> 4722.36 | T67: =SUM(T68:T69) -> 1050509
D68: 人工林 | E68: 1340.72 | F68: 318600 | G68: 665.36 | H68: 168605 | I68: 53.12 | J68: 22033 | K68: 67.55 | L68: 32095 | M68: 5.02 | N68: 1268 | P68: 0 | Q68: 1395.25 | R68: 354740 | S68: =E68+G68+I68+K68+M68+O68+Q68 -> 3527.02 | T68: 897341
D69: 天然林 | E69: 369.46 | F69: 40818 | G69: 339.25 | H69: 41193 | I69: 38.64 | J69: 8829 | K69: 20.8 | L69: 4696 | M69: 0.06 | N69: 4 | P69: 0 | Q69: 427.13 | R69: 57628 | S69: 1195.34 | T69: 153168
C70: その他 | E70: 28.96 | F70: 0 | G70: 27.7 | H70: 0 | I70: 1.17 | J70: 0 | L70: 0 | N70: 0 | P70: 0 | Q70: 32.53 | R70: 0 | S70: 90.36 | T70: 0
B71: 中川村 | C71: 総 数 | E71: =SUM(E72,E75) -> 854.02 | F71: =SUM(F72,F75) -> 172095 | G71: 347.44 | H71: 56635 | I71: 0 | J71: 0 | K71: 33.65 | L71: 7025 | M71: 0 | N71: 0 | O71: 0 | P71: 0 | Q71: 4678.24 | R71: 881593 | S71: =SUM(S72,S75) -> 5913.35 | T71: =SUM(T72,T75) -> 1117348
C72: 立木地 | D72: 総 数 | E72: =SUM(E73:E74) -> 826.5 | F72: 172095 | G72: 334.85 | H72: 56635 | I72: 0 | J72: 0 | K72: 31.01 | L72: 7025 | M72: 0 | N72: 0 | O72: 0 | P72: 0 | Q72: 4492.65 | R72: 881593 | S72: =SUM(S73:S74) -> 5685.01 | T72: =SUM(T73:T74) -> 1117348
D73: 人工林 | E73: 684.82 | F73: 152016 | G73: 233.94 | H73: 43589 | J73: 0 | K73: 8.25 | L73: 1816 | N73: 0 | P73: 0 | Q73: 2153.19 | R73: 526932 | S73: =E73+G73+I73+K73+M73+O73+Q73 -> 3080.2 | T73: 724353
D74: 天然林 | E74: 141.68 | F74: 20079 | G74: 100.91 | H74: 13046 | J74: 0 | K74: 22.76 | L74: 5209 | N74: 0 | P74: 0 | Q74: 2339.46 | R74: 354661 | S74: 2604.81 | T74: 392995
C75: その他 | E75: 27.52 | F75: 0 | G75: 12.59 | H75: 0 | J75: 0 | K75: 2.64 | L75: 0 | N75: 0 | P75: 0 | Q75: 185.59 | R75: 0 | S75: 228.34 | T75: 0
B76: 宮田村 | C76: 総 数 | E76: =SUM(E77,E80) -> 336.27 | F76: =SUM(F77,F80) -> 71590 | G76: 773.04 | H76: 181444 | I76: 0 | J76: 0 | K76: 269.67 | L76: 57620 | M76: 0 | N76: 0 | O76: 0 | P76: 0 | Q76: 1392.36 | R76: 322539 | S76: =SUM(S77,S80) -> 2771.34 | T76: =SUM(T77,T80) -> 633193
C77: 立木地 | D77: 総 数 | E77: =SUM(E78:E79) -> 331.02 | F77: 71590 | G77: 765.8 | H77: 181444 | I77: 0 | J77: 0 | K77: 256.31 | L77: 57620 | M77: 0 | N77: 0 | O77: 0 | P77: 0 | Q77: 1367.88 | R77: 322539 | S77: =SUM(S78:S79) -> 2721.01 | T77: =SUM(T78:T79) -> 633193
D78: 人工林 | E78: 201.91 | F78: 53354 | G78: 584.92 | H78: 154997 | J78: 0 | K78: 200.34 | L78: 52352 | N78: 0 | P78: 0 | Q78: 1070.51 | R78: 280692 | S78: =E78+G78+I78+K78+M78+O78+Q78 -> 2057.68 | T78: 541395
D79: 天然林 | E79: 129.11 | F79: 18236 | G79: 180.88 | H79: 26447 | J79: 0 | K79: 55.97 | L79: 5268 | N79: 0 | P79: 0 | Q79: 297.37 | R79: 41847 | S79: 663.33 | T79: 91798
C80: その他 | E80: 5.25 | F80: 0 | G80: 7.24 | H80: 0 | J80: 0 | K80: 13.36 | L80: 0 | N80: 0 | P80: 0 | Q80: 24.48 | R80: 0 | S80: 50.33 | T80: 0
B81: 上伊那計 | C81: 総 数 | E81: =SUM(E41,E46,E51,E56,E61,E66,E71,E76) -> 23278.96 | F81: =SUM(F41,F46,F51,F56,F61,F66,F71,F76) -> 4932351 | G81: 16383.73 | H81: 3558359 | I81: 92.93 | J81: 30862 | K81: 2643.48 | L81: 553695 | M81: 25.61 | N81: 7825 | O81: 0 | P81: 0 | Q81: 48255.52 | R81: 10652281 | S81: =SUM(S82,S85) -> 90680.23 | T81: =SUM(T82,T85) -> 19735373
C82: 立木地 | D82: 総 数 | E82: =SUM(E42,E47,E52,E57,E62,E67,E72,E77) -> 22826.99 | F82: 4931359 | G82: 16006.8 | H82: 3557352 | I82: 91.76 | J82: 30862 | K82: 2578.04 | L82: 553695 | M82: 25.55 | N82: 7825 | O82: 0 | P82: 0 | Q82: 47306.8 | R82: 10651289 | S82: =SUM(S83:S84) -> 88835.94 | T82: =SUM(T83:T84) -> 19732382
D83: 人工林 | E83: =SUM(E43,E48,E53,E58,E63,E68,E73,E78) -> 16205.03 | F83: 3935564 | G83: 10205.53 | H83: 2626943 | I83: 53.12 | J83: 22033 | K83: 1261.99 | L83: 342152 | M83: 18.52 | N83: 5748 | O83: 0 | P83: 0 | Q83: 30720.34 | R83: 7915585 | S83: =E83+G83+I83+K83+M83+O83+Q83 -> 58464.53 | T83: 14848025
D84: 天然林 | E84: =SUM(E44,E49,E54,E59,E64,E69,E74,E79) -> 6621.96 | F84: 995795 | G84: 5801.27 | H84: 930409 | I84: 38.64 | J84: 8829 | K84: 1316.05 | L84: 211543 | M84: 7.03 | N84: 2077 | O84: 0 | P84: 0 | Q84: 16586.46 | R84: 2735704 | S84: 30371.41 | T84: 4884357
C85: その他 | E85: =SUM(E45,E50,E55,E60,E65,E70,E75,E80) -> 451.97 | F85: 992 | G85: 376.93 | H85: 1007 | I85: 1.17 | J85: 0 | K85: 65.44 | L85: 0 | M85: 0.06 | N85: 0 | O85: 0 | P85: 0 | Q85: 948.72 | R85: 992 | S85: 1844.29 | T85: 2991
A86: 南信州 | B86: 飯田市 | C86: 総 数 | E86: =SUM(E87,E90) -> 38132.08 | F86: =SUM(F87,F90) -> 6747800 | G86: 11225.23 | H86: 1760231 | I86: 0 | J86: 0 | K86: 327.73 | L86: 67174 | M86: 0 | N86: 0 | O86: 0 | P86: 0 | Q86: 9559.19 | R86: 2041528 | S86: =SUM(S87,S90) -> 59244.23 | T86: =SUM(T87,T90) -> 10616733
C87: 立木地 | D87: 総 数 | E87: =SUM(E88:E89) -> 36938.55 | F87: 6747800 | G87: 10660.95 | H87: 1760231 | I87: 0 | J87: 0 | K87: 320.24 | L87: 67174 | M87: 0 | N87: 0 | O87: 0 | P87: 0 | Q87: 9360.39 | R87: 2041528 | S87: =SUM(S88:S89) -> 57280.13 | T87: =SUM(T88:T89) -> 10616733
D88: 人工林 | E88: 15848.01 | F88: 3984273 | G88: 3689.99 | H88: 849622 | J88: 0 | K88: 146.46 | L88: 36277 | N88: 0 | P88: 0 | Q88: 5582.21 | R88: 1516615 | S88: =E88+G88+I88+K88+M88+O88+Q88 -> 25266.67 | T88: 6386787
D89: 天然林 | E89: 21090.54 | F89: 2763527 | G89: 6970.96 | H89: 910609 | J89: 0 | K89: 173.78 | L89: 30897 | N89: 0 | P89: 0 | Q89: 3778.18 | R89: 524913 | S89: 32013.46 | T89: 4229946
C90: その他 | E90: 1193.53 | F90: 0 | G90: 564.28 | H90: 0 | J90: 0 | K90: 7.49 | L90: 0 | N90: 0 | P90: 0 | Q90: 198.8 | R90: 0 | S90: 1964.1 | T90: 0
B91: 松川町 | C91: 総 数 | E91: =SUM(E92,E95) -> 1633.75 | F91: =SUM(F92,F95) -> 333705 | G91: 569.24 | H91: 108920 | I91: 0 | J91: 0 | K91: 387 | L91: 62298 | M91: 0 | N91: 0 | O91: 0 | P91: 0 | Q91: 692.73 | R91: 161424 | S91: =SUM(S92,S95) -> 3282.72 | T91: =SUM(T92,T95) -> 666347
C92: 立木地 | D92: 総 数 | E92: =SUM(E93:E94) -> 1574.32 | F92: 333705 | G92: 552.72 | H92: 108920 | I92: 0 | J92: 0 | K92: 374.11 | L92: 62298 | M92: 0 | N92: 0 | O92: 0 | P92: 0 | Q92: 681.26 | R92: 161424 | S92: =SUM(S93:S94) -> 3182.41 | T92: =SUM(T93:T94) -> 666347
D93: 人工林 | E93: 845.68 | F93: 216165 | G93: 187.04 | H93: 42683 | J93: 0 | K93: 87.31 | L93: 21611 | N93: 0 | P93: 0 | Q93: 393.06 | R93: 100697 | S93: =E93+G93+I93+K93+M93+O93+Q93 -> 1513.09 | T93: 381156
D94: 天然林 | E94: 728.64 | F94: 117540 | G94: 365.68 | H94: 66237 | J94: 0 | K94: 286.8 | L94: 40687 | N94: 0 | P94: 0 | Q94: 288.2 | R94: 60727 | S94: 1669.32 | T94: 285191
C95: その他 | E95: 59.43 | F95: 0 | G95: 16.52 | H95: 0 | J95: 0 | K95: 12.89 | L95: 0 | N95: 0 | P95: 0 | Q95: 11.47 | R95: 0 | S95: 100.31 | T95: 0
B96: 高森町 | C96: 総 数 | E96: =SUM(E97,E100) -> 1070.77 | F96: =SUM(F97,F100) -> 217008 | G96: 1061.61 | H96: 243477 | I96: 0 | J96: 0 | K96: 0 | L96: 0 | M96: 0 | N96: 0 | O96: 0 | P96: 0 | Q96: 218.61 | R96: 50377 | S96: =SUM(S97,S100) -> 2350.99 | T96: =SUM(T97,T100) -> 510862
C97: 立木地 | D97: 総 数 | E97: =SUM(E98:E99) -> 1037.22 | F97: 217008 | G97: 1049.77 | H97: 243477 | I97: 0 | J97: 0 | K97: 0 | L97: 0 | M97: 0 | N97: 0 | O97: 0 | P97: 0 | Q97: 214.07 | R97: 50377 | S97: =SUM(S98:S99) -> 2301.06 | T97: =SUM(T98:T99) -> 510862
D98: 人工林 | E98: 620.49 | F98: 157940 | G98: 650.52 | H98: 160718 | J98: 0 | L98: 0 | N98: 0 | P98: 0 | Q98: 152.74 | R98: 35925 | S98: =E98+G98+I98+K98+M98+O98+Q98 -> 1423.75 | T98: 354583
D99: 天然林 | E99: 416.73 | F99: 59068 | G99: 399.25 | H99: 82759 | J99: 0 | L99: 0 | N99: 0 | P99: 0 | Q99: 61.33 | R99: 14452 | S99: 877.31 | T99: 156279
C100: その他 | E100: 33.55 | F100: 0 | G100: 11.84 | H100: 0 | J100: 0 | L100: 0 | N100: 0 | P100: 0 | Q100: 4.54 | R100: 0 | S100: 49.93 | T100: 0
B101: 阿南町 | C101: 総 数 | E101: =SUM(E102,E105) -> 9420.17 | F101: =SUM(F102,F105) -> 1809105 | G101: 699.01 | H101: 129205 | I101: 0 | J101: 0 | K101: 0 | L101: 0 | M101: 0 | N101: 0 | O101: 0 | P101: 0 | Q101: 2266.23 | R101: 532656 | S101: =SUM(S102,S105) -> 12385.41 | T101: =SUM(T102,T105) -> 2470966
C102: 立木地 | D102: 総 数 | E102: =SUM(E103:E104) -> 9252.8 | F102: 1809105 | G102: 687.47 | H102: 129205 | I102: 0 | J102: 0 | K102: 0 | L102: 0 | M102: 0 | N102: 0 | O102: 0 | P102: 0 | Q102: 2231.07 | R102: 532656 | S102: =SUM(S103:S104) -> 12171.34 | T102: =SUM(T103:T104) -> 2470966
D103: 人工林 | E103: 4130.37 | F103: 1111229 | G103: 515.21 | H103: 110689 | J103: 0 | L103: 0 | N103: 0 | P103: 0 | Q103: 1493.79 | R103: 420941 | S103: =E103+G103+I103+K103+M103+O103+Q103 -> 6139.37 | T103: 1642859
D104: 天然林 | E104: 5122.43 | F104: 697876 | G104: 172.26 | H104: 18516 | J104: 0 | L104: 0 | N104: 0 | P104: 0 | Q104: 737.28 | R104: 111715 | S104: 6031.97 | T104: 828107
C105: その他 | E105: 167.37 | F105: 0 | G105: 11.54 | H105: 0 | J105: 0 | L105: 0 | N105: 0 | P105: 0 | Q105: 35.16 | R105: 0 | S105: 214.07 | T105: 0
B106: 阿智村 | C106: 総 数 | E106: =SUM(E107,E110) -> 16533.21 | F106: =SUM(F107,F110) -> 3107980 | G106: 806 | H106: 140541 | I106: 0 | J106: 0 | K106: 0 | L106: 0 | M106: 0 | N106: 0 | O106: 0 | P106: 0 | Q106: 11221.08 | R106: 2174665 | S106: =SUM(S107,S110) -> 28560.29 | T106: =SUM(T107,T110) -> 5423186
C107: 立木地 | D107: 総 数 | E107: =SUM(E108:E109) -> 15984.75 | F107: 3107980 | G107: 775.18 | H107: 140541 | I107: 0 | J107: 0 | K107: 0 | L107: 0 | M107: 0 | N107: 0 | O107: 0 | P107: 0 | Q107: 10870.4 | R107: 2174665 | S107: =SUM(S108:S109) -> 27630.33 | T107: =SUM(T108:T109) -> 5423186
D108: 人工林 | E108: 8372.36 | F108: 2163925 | G108: 600.02 | H108: 121691 | J108: 0 | L108: 0 | N108: 0 | P108: 0 | Q108: 5815.37 | R108: 1530580 | S108: =E108+G108+I108+K108+M108+O108+Q108 -> 14787.75 | T108: 3816196
D109: 天然林 | E109: 7612.39 | F109: 944055 | G109: 175.16 | H109: 18850 | J109: 0 | L109: 0 | N109: 0 | P109: 0 | Q109: 5055.03 | R109: 644085 | S109: 12842.58 | T109: 1606990
C110: その他 | E110: 548.46 | F110: 0 | G110: 30.82 | H110: 0 | J110: 0 | L110: 0 | N110: 0 | P110: 0 | Q110: 350.68 | R110: 0 | S110: 929.96 | T110: 0
B111: 平谷村 | C111: 総 数 | E111: =SUM(E112,E115) -> 6996.4 | F111: =SUM(F112,F115) -> 1193927 | G111: 260.41 | H111: 46339 | I111: 0 | J111: 0 | K111: 0 | L111: 0 | M111: 0 | N111: 0 | O111: 0 | P111: 0 | Q111: 2471.25 | R111: 586344 | S111: =SUM(S112,S115) -> 9728.06 | T111: =SUM(T112,T115) -> 1826610
C112: 立木地 | D112: 総 数 | E112: =SUM(E113:E114) -> 6677.88 | F112: 1192643 | G112: 243.04 | H112: 46339 | I112: 0 | J112: 0 | K112: 0 | L112: 0 | M112: 0 | N112: 0 | O112: 0 | P112: 0 | Q112: 2378.33 | R112: 585060 | S112: =SUM(S113:S114) -> 9299.25 | T112: =SUM(T113:T114) -> 1824042
D113: 人工林 | E113: 3257.35 | F113: 814640 | G113: 226.5 | H113: 44749 | J113: 0 | L113: 0 | N113: 0 | P113: 0 | Q113: 1892.68 | R113: 525147 | S113: =E113+G113+I113+K113+M113+O113+Q113 -> 5376.53 | T113: 1384536
D114: 天然林 | E114: 3420.53 | F114: 378003 | G114: 16.54 | H114: 1590 | J114: 0 | L114: 0 | N114: 0 | P114: 0 | Q114: 485.65 | R114: 59913 | S114: 3922.72 | T114: 439506
C115: その他 | E115: 318.52 | F115: 1284 | G115: 17.37 | H115: 0 | J115: 0 | L115: 0 | N115: 0 | P115: 0 | Q115: 92.92 | R115: 1284 | S115: 428.81 | T115: 2568
A116: 南信州 | B116: 根羽村 | C116: 総 数 | E116: =SUM(E117,E120) -> 7289.13 | F116: =SUM(F117,F120) -> 2096881 | G116: 528.52 | H116: 120250 | I116: 0 | J116: 0 | K116: 619.62 | L116: 96279 | M116: 0 | N116: 0 | O116: 0 | P116: 0 | Q116: 7814.01 | R116: 2216322 | S116: =SUM(S117,S120) -> 16251.28 | T116: =SUM(T117,T120) -> 4529732
C117: 立木地 | D117: 総 数 | E117: =SUM(E118:E119) -> 7202.43 | F117: 2096881 | G117: 517.47 | H117: 120250 | I117: 0 | J117: 0 | K117: 613.58 | L117: 96279 | M117: 0 | N117: 0 | O117: 0 | P117: 0 | Q117: 7716.54 | R117: 2216322 | S117: =SUM(S118:S119) -> 16050.02 | T117: =SUM(T118:T119) -> 4529732
D118: 人工林 | E118: 5604.53 | F118: 1897020 | G118: 445.78 | H118: 110500 | J118: 0 | K118: 113.94 | L118: 32205 | N118: 0 | P118: 0 | Q118: 6046.95 | R118: 2006711 | S118: =E118+G118+I118+K118+M118+O118+Q118 -> 12211.2 | T118: 4046436
D119: 天然林 | E119: 1597.9 | F119: 199861 | G119: 71.69 | H119: 9750 | J119: 0 | K119: 499.64 | L119: 64074 | N119: 0 | P119: 0 | Q119: 1669.59 | R119: 209611 | S119: 3838.82 | T119: 483296
C120: その他 | E120: 86.7 | F120: 0 | G120: 11.05 | H120: 0 | J120: 0 | K120: 6.04 | L120: 0 | N120: 0 | P120: 0 | Q120: 97.47 | R120: 0 | S120: 201.26 | T120: 0
B121: 下條村 | C121: 総 数 | E121: =SUM(E122,E125) -> 2044.7 | F121: =SUM(F122,F125) -> 383036 | G121: 279.56 | H121: 52087 | I121: 0 | J121: 0 | K121: 0 | L121: 0 | M121: 0 | N121: 0 | O121: 0 | P121: 0 | Q121: 603.54 | R121: 128315 | S121: =SUM(S122,S125) -> 2927.8 | T121: =SUM(T122,T125) -> 563438
C122: 立木地 | D122: 総 数 | E122: =SUM(E123:E124) -> 1988.75 | F122: 383036 | G122: 264.97 | H122: 52087 | I122: 0 | J122: 0 | K122: 0 | L122: 0 | M122: 0 | N122: 0 | O122: 0 | P122: 0 | Q122: 594.87 | R122: 128315 | S122: =SUM(S123:S124) -> 2848.59 | T122: =SUM(T123:T124) -> 563438
D123: 人工林 | E123: 787.35 | F123: 206088 | G123: 193.06 | H123: 43901 | J123: 0 | L123: 0 | N123: 0 | P123: 0 | Q123: 314 | R123: 81813 | S123: =E123+G123+I123+K123+M123+O123+Q123 -> 1294.41 | T123: 331802
D124: 天然林 | E124: 1201.4 | F124: 176948 | G124: 71.91 | H124: 8186 | J124: 0 | L124: 0 | N124: 0 | P124: 0 | Q124: 280.87 | R124: 46502 | S124: 1554.18 | T124: 231636
C125: その他 | E125: 55.95 | F125: 0 | G125: 14.59 | H125: 0 | J125: 0 | L125: 0 | N125: 0 | P125: 0 | Q125: 8.67 | R125: 0 | S125: 79.21 | T125: 0
B126: 売木村 | C126: 総 数 | E126: =SUM(E127,E130) -> 3308 | F126: =SUM(F127,F130) -> 759997 | G126: 162.16 | H126: 30125 | I126: 0 | J126: 0 | K126: 334.78 | L126: 76263 | M126: 0 | N126: 0 | O126: 0 | P126: 0 | Q126: 3307.95 | R126: 759991 | S126: =SUM(S127,S130) -> 7112.89 | T126: =SUM(T127,T130) -> 1626376
C127: 立木地 | D127: 総 数 | E127: =SUM(E128:E129) -> 3274.83 | F127: 759997 | G127: 156.76 | H127: 30125 | I127: 0 | J127: 0 | K127: 332.42 | L127: 76263 | M127: 0 | N127: 0 | O127: 0 | P127: 0 | Q127: 3274.78 | R127: 759991 | S127: =SUM(S128:S129) -> 7038.79 | T127: =SUM(T128:T129) -> 1626376
D128: 人工林 | E128: 2391.24 | F128: 633764 | G128: 150.96 | H128: 29435 | J128: 0 | K128: 207.2 | L128: 56835 | N128: 0 | P128: 0 | Q128: 2391.24 | R128: 633764 | S128: =E128+G128+I128+K128+M128+O128+Q128 -> 5140.64 | T128: 1353798
D129: 天然林 | E129: 883.59 | F129: 126233 | G129: 5.8 | H129: 690 | J129: 0 | K129: 125.22 | L129: 19428 | N129: 0 | P129: 0 | Q129: 883.54 | R129: 126227 | S129: 1898.15 | T129: 272578
C130: その他 | E130: 33.17 | F130: 0 | G130: 5.4 | H130: 0 | J130: 0 | K130: 2.36 | L130: 0 | N130: 0 | P130: 0 | Q130: 33.17 | R130: 0 | S130: 74.1 | T130: 0
B131: 天龍村 | C131: 総 数 | E131: =SUM(E132,E135) -> 8478.06 | F131: =SUM(F132,F135) -> 1868996 | G131: 905.81 | H131: 173291 | I131: 0 | J131: 0 | K131: 811.36 | L131: 196839 | M131: 0 | N131: 0 | O131: 0 | P131: 0 | Q131: 3239.98 | R131: 811889 | S131: =SUM(S132,S135) -> 13435.21 | T131: =SUM(T132,T135) -> 3051015
C132: 立木地 | D132: 総 数 | E132: =SUM(E133:E134) -> 8251.89 | F132: 1868996 | G132: 887.6 | H132: 173291 | I132: 0 | J132: 0 | K132: 793.04 | L132: 196839 | M132: 0 | N132: 0 | O132: 0 | P132: 0 | Q132: 3168.82 | R132: 811889 | S132: =SUM(S133:S134) -> 13101.35 | T132: =SUM(T133:T134) -> 3051015
D133: 人工林 | E133: 4045.94 | F133: 1332568 | G133: 560.92 | H133: 133185 | J133: 0 | K133: 404.52 | L133: 145686 | N133: 0 | P133: 0 | Q133: 2060.89 | R133: 677785 | S133: =E133+G133+I133+K133+M133+O133+Q133 -> 7072.27 | T133: 2289224
D134: 天然林 | E134: 4205.95 | F134: 536428 | G134: 326.68 | H134: 40106 | J134: 0 | K134: 388.52 | L134: 51153 | N134: 0 | P134: 0 | Q134: 1107.93 | R134: 134104 | S134: 6029.08 | T134: 761791
C135: その他 | E135: 226.17 | F135: 0 | G135: 18.21 | H135: 0 | J135: 0 | K135: 18.32 | L135: 0 | N135: 0 | P135: 0 | Q135: 71.16 | R135: 0 | S135: 333.86 | T135: 0
B136: 泰阜村 | C136: 総 数 | E136: =SUM(E137,E140) -> 4993.46 | F136: =SUM(F137,F140) -> 809389 | G136: 606.25 | H136: 100801 | I136: 0 | J136: 0 | K136: 0 | L136: 0 | M136: 0 | N136: 0 | O136: 0 | P136: 0 | Q136: 3170.59 | R136: 536104 | S136: =SUM(S137,S140) -> 8770.3 | T136: =SUM(T137,T140) -> 1446294
C137: 立木地 | D137: 総 数 | E137: =SUM(E138:E139) -> 4931.56 | F137: 809389 | G137: 590.76 | H137: 100801 | I137: 0 | J137: 0 | K137: 0 | L137: 0 | M137: 0 | N137: 0 | O137: 0 | P137: 0 | Q137: 3124.7 | R137: 536104 | S137: =SUM(S138:S139) -> 8647.02 | T137: =SUM(T138:T139) -> 1446294
D138: 人工林 | E138: 1448.34 | F138: 350601 | G138: 287.61 | H138: 62813 | J138: 0 | L138: 0 | N138: 0 | P138: 0 | Q138: 1246.7 | R138: 291238 | S138: =E138+G138+I138+K138+M138+O138+Q138 -> 2982.65 | T138: 704652
D139: 天然林 | E139: 3483.22 | F139: 458788 | G139: 303.15 | H139: 37988 | J139: 0 | L139: 0 | N139: 0 | P139: 0 | Q139: 1878 | R139: 244866 | S139: 5664.37 | T139: 741642
C140: その他 | E140: 61.9 | F140: 0 | G140: 15.49 | H140: 0 | J140: 0 | L140: 0 | N140: 0 | P140: 0 | Q140: 45.89 | R140: 0 | S140: 123.28 | T140: 0
B141: 喬木村 | C141: 総 数 | E141: =SUM(E142,E145) -> 3027.94 | F141: =SUM(F142,F145) -> 588344 | G141: 472.2 | H141: 95395 | I141: 0 | J141: 0 | K141: 142.68 | L141: 27175 | M141: 0 | N141: 0 | O141: 0 | P141: 0 | Q141: 116.13 | R141: 24519 | S141: =SUM(S142,S145) -> 3758.95 | T141: =SUM(T142,T145) -> 735433
C142: 立木地 | D142: 総 数 | E142: =SUM(E143:E144) -> 2969.02 | F142: 588344 | G142: 451.76 | H142: 95395 | I142: 0 | J142: 0 | K142: 138.89 | L142: 27175 | M142: 0 | N142: 0 | O142: 0 | P142: 0 | Q142: 113.86 | R142: 24519 | S142: =SUM(S143:S144) -> 3673.53 | T142: =SUM(T143:T144) -> 735433
D143: 人工林 | E143: 1495.94 | F143: 374753 | G143: 230.68 | H143: 59016 | J143: 0 | K143: 78.35 | L143: 18039 | N143: 0 | P143: 0 | Q143: 51.29 | R143: 11455 | S143: =E143+G143+I143+K143+M143+O143+Q143 -> 1856.26 | T143: 463263
D144: 天然林 | E144: 1473.08 | F144: 213591 | G144: 221.08 | H144: 36379 | J144: 0 | K144: 60.54 | L144: 9136 | N144: 0 | P144: 0 | Q144: 62.57 | R144: 13064 | S144: 1817.27 | T144: 272170
C145: その他 | E145: 58.92 | F145: 0 | G145: 20.44 | H145: 0 | J145: 0 | K145: 3.79 | L145: 0 | N145: 0 | P145: 0 | Q145: 2.27 | R145: 0 | S145: 85.42 | T145: 0
B146: 豊丘村 | C146: 総 数 | E146: =SUM(E147,E150) -> 4521.16 | F146: =SUM(F147,F150) -> 915819 | G146: 545.37 | H146: 106071 | I146: 0 | J146: 0 | K146: 0 | L146: 0 | M146: 0 | N146: 0 | O146: 0 | P146: 0 | Q146: 129.39 | R146: 31559 | S146: =SUM(S147,S150) -> 5195.92 | T146: =SUM(T147,T150) -> 1053449
C147: 立木地 | D147: 総 数 | E147: =SUM(E148:E149) -> 4409.38 | F147: 915819 | G147: 527.92 | H147: 106071 | I147: 0 | J147: 0 | K147: 0 | L147: 0 | M147: 0 | N147: 0 | O147: 0 | P147: 0 | Q147: 128.17 | R147: 31559 | S147: =SUM(S148:S149) -> 5065.47 | T147: =SUM(T148:T149) -> 1053449
D148: 人工林 | E148: 1883.07 | F148: 492902 | G148: 191.25 | H148: 47653 | J148: 0 | L148: 0 | N148: 0 | P148: 0 | Q148: 65.26 | R148: 17658 | S148: =E148+G148+I148+K148+M148+O148+Q148 -> 2139.58 | T148: 558213
D149: 天然林 | E149: 2526.31 | F149: 422917 | G149: 336.67 | H149: 58418 | J149: 0 | L149: 0 | N149: 0 | P149: 0 | Q149: 62.91 | R149: 13901 | S149: 2925.89 | T149: 495236
C150: その他 | E150: 111.78 | F150: 0 | G150: 17.45 | H150: 0 | J150: 0 | L150: 0 | N150: 0 | P150: 0 | Q150: 1.22 | R150: 0 | S150: 130.45 | T150: 0
B151: 大鹿村 | C151: 総 数 | E151: =SUM(E152,E155) -> 11583.12 | F151: =SUM(F152,F155) -> 2145228 | G151: 2825.66 | H151: 570347 | I151: 0 | J151: 0 | K151: 0 | L151: 0 | M151: 0 | N151: 0 | O151: 0 | P151: 0 | Q151: 1229.39 | R151: 273670 | S151: =SUM(S152,S155) -> 15638.17 | T151: =SUM(T152,T155) -> 2989245
C152: 立木地 | D152: 総 数 | E152: =SUM(E153:E154) -> 11038.86 | F152: 2145228 | G152: 2692.13 | H152: 570347 | I152: 0 | J152: 0 | K152: 0 | L152: 0 | M152: 0 | N152: 0 | O152: 0 | P152: 0 | Q152: 1192.27 | R152: 273670 | S152: =SUM(S153:S154) -> 14923.26 | T152: =SUM(T153:T154) -> 2989245
D153: 人工林 | E153: 5242.08 | F153: 1390577 | G153: 1657.83 | H153: 434429 | J153: 0 | L153: 0 | N153: 0 | P153: 0 | Q153: 906.55 | R153: 238587 | S153: =E153+G153+I153+K153+M153+O153+Q153 -> 7806.46 | T153: 2063593
D154: 天然林 | E154: 5796.78 | F154: 754651 | G154: 1034.3 | H154: 135918 | J154: 0 | L154: 0 | N154: 0 | P154: 0 | Q154: 285.72 | R154: 35083 | S154: 7116.8 | T154: 925652
C155: その他 | E155: 544.26 | F155: 0 | G155: 133.53 | H155: 0 | J155: 0 | L155: 0 | N155: 0 | P155: 0 | Q155: 37.12 | R155: 0 | S155: 714.91 | T155: 0
B156: 南信州計 | C156: 総 数 | E156: =SUM(E86,E91,E96,E101,E106,E111,E116,E121,E126,E131,E136,E141,E146,E151) -> 119031.95 | F156: =SUM(F86,F91,F96,F101,F106,F111,F116,F121,F126,F131,F136,F141,F146,F151) -> 22977215 | G156: 20947.03 | H156: 3677080 | I156: 0 | J156: 0 | K156: 2623.17 | L156: 526028 | M156: 0 | N156: 0 | O156: 0 | P156: 0 | Q156: 46040.07 | R156: 10329363 | S156: =SUM(S157,S160) -> 188642.22 | T156: =SUM(T157,T160) -> 37509686
C157: 立木地 | D157: 総 数 | E157: =SUM(E87,E92,E97,E102,E107,E112,E117,E122,E127,E132,E137,E142,E147,E152) -> 115532.24 | F157: 22975931 | G157: 20058.5 | H157: 3677080 | I157: 0 | J157: 0 | K157: 2572.28 | L157: 526028 | M157: 0 | N157: 0 | O157: 0 | P157: 0 | Q157: 45049.53 | R157: 10328079 | S157: =SUM(S158:S159) -> 183212.55 | T157: =SUM(T158:T159) -> 37507118
D158: 人工林 | E158: =SUM(E88,E93,E98,E103,E108,E113,E118,E123,E128,E133,E138,E143,E148,E153) -> 55972.75 | F158: 15126445 | G158: 9587.37 | H158: 2251084 | I158: 0 | J158: 0 | K158: 1037.78 | L158: 310653 | M158: 0 | N158: 0 | O158: 0 | P158: 0 | Q158: 28412.73 | R158: 8088916 | S158: =E158+G158+I158+K158+M158+O158+Q158 -> 95010.63 | T158: 25777098
D159: 天然林 | E159: =SUM(E89,E94,E99,E104,E109,E114,E119,E124,E129,E134,E139,E144,E149,E154) -> 59559.49 | F159: 7849486 | G159: 10471.13 | H159: 1425996 | I159: 0 | J159: 0 | K159: 1534.5 | L159: 215375 | M159: 0 | N159: 0 | O159: 0 | P159: 0 | Q159: 16636.8 | R159: 2239163 | S159: 88201.92 | T159: 11730020
C160: その他 | E160: =SUM(E90,E95,E100,E105,E110,E115,E120,E125,E130,E135,E140,E145,E150,E155) -> 3499.71 | F160: 1284 | G160: 888.53 | H160: 0 | I160: 0 | J160: 0 | K160: 50.89 | L160: 0 | M160: 0 | N160: 0 | O160: 0 | P160: 0 | Q160: 990.54 | R160: 1284 | S160: 5429.67 | T160: 2568
A161: 計画区計 | C161: 総 数 | E161: =SUM(E36,E81,E156,) -> 159202.56 | F161: =SUM(F36,F81,F156,) -> 31351996 | G161: 54320.76 | H161: 11101073 | I161: 7026.17 | J161: 1448877 | K161: 7513.54 | L161: 1414491 | M161: 307.83 | N161: 38132 | O161: 0 | P161: 0 | Q161: 108459.89 | R161: 23989076 | S161: =SUM(S162,S165) -> 336830.75 | T161: =SUM(T162,T165) -> 69343645
C162: 立木地 | D162: 総 数 | E162: =SUM(E37,E82,E157,) -> 154630.37 | F162: 31349491 | G162: 52513.87 | H162: 11100066 | I162: 6715.53 | J162: 1448877 | K162: 6655.48 | L162: 1414491 | M162: 248.67 | N162: 38132 | O162: 0 | P162: 0 | Q162: 106030.15 | R162: 23986800 | S162: =SUM(S163:S164) -> 326794.07 | T162: =SUM(T163:T164) -> 69337857
D163: 人工林 | E163: =SUM(E38,E83,E158,) -> 81419.11 | F163: 21459035 | G163: 30047.15 | H163: 7640492 | I163: 3420.81 | J163: 957053 | K163: 3240.01 | L163: 901916 | M163: 49.76 | N163: 11218 | O163: 0 | P163: 0 | Q163: 67342.27 | R163: 18163946 | S163: =E163+G163+I163+K163+M163+O163+Q163 -> 185519.11 | T163: 49133660
D164: 天然林 | E164: =SUM(E39,E84,E159,) -> 73211.26 | F164: 9890456 | G164: 22466.72 | H164: 3459574 | I164: 3294.72 | J164: 491824 | K164: 3415.47 | L164: 512575 | M164: 198.91 | N164: 26914 | O164: 0 | P164: 0 | Q164: 38687.88 | R164: 5822854 | S164: 141274.96 | T164: 20204197
C165: その他 | E165: =SUM(E40,E85,E160,) -> 4572.19 | F165: 2505 | G165: 1806.89 | H165: 1007 | I165: 310.64 | J165: 0 | K165: 858.06 | L165: 0 | M165: 59.16 | N165: 0 | O165: 0 | P165: 0 | Q165: 2429.74 | R165: 2276 | S165: 10036.68 | T165: 5788
Q166: 332326.22 | R166: 67710861

Sheet 木曽谷
A1: 第10-1表 市町村別・公益的機能別施業森林等区分別ゾーニング別・資源表
R2: （単位 面積：ha 蓄積：m3）
A3: 地域振興局 | B3: 市町村名 | C3: 区 分 | E3: 公益的機能別施業森林等区分別
E4: 水かん | G4: 山災/土壌 | I4: 快適環境 | K4: 保健 | M4: 文化 | O4: 独自 | Q4: 木材 | S4: 総数
E5: 面積 | F5: 蓄積 | G5: 面積 | H5: 蓄積 | I5: 面積 | J5: 蓄積 | K5: 面積 | L5: 蓄積 | M5: 面積 | N5: 蓄積 | O5: 面積 | P5: 蓄積 | Q5: 面積 | R5: 蓄積 | S5: 面積 | T5: 蓄積
A6: 木曽 | B6: 上松町 | C6: 総 数 | E6: =SUM(E7,E10) -> 2227.73 | F6: =SUM(F7,F10) -> 383276 | G6: 2882.74 | H6: 486760 | I6: 0 | J6: 0 | K6: 32.08 | L6: 4981 | M6: 2.13 | N6: 573 | O6: 0 | P6: 0 | Q6: 4922.5 | R6: 839127 | S6: =SUM(S7,S10) -> 10067.18 | T6: =SUM(T7,T10) -> 1714717
C7: 立木地 | D7: 総 数 | E7: =SUM(E8:E9) -> 2222.01 | F7: 383276 | G7: 2852.65 | H7: 486760 | I7: 0 | J7: 0 | K7: 30.5 | L7: 4981 | M7: 2.13 | N7: 573 | O7: 0 | P7: 0 | Q7: 4887.17 | R7: 839127 | S7: =SUM(S8:S9) -> 9994.46 | T7: =SUM(T8:T9) -> 1714717
D8: 人工林 | E8: 768.95 | F8: 185589 | G8: 907.78 | H8: 234532 | J8: 0 | K8: 9.89 | L8: 2612 | M8: 0.79 | N8: 299 | P8: 0 | Q8: 1628.37 | R8: 408417 | S8: =E8+G8+I8+K8+M8+O8+Q8 -> 3315.78 | T8: 831449
D9: 天然林 | E9: 1453.06 | F9: 197687 | G9: 1944.87 | H9: 252228 | J9: 0 | K9: 20.61 | L9: 2369 | M9: 1.34 | N9: 274 | P9: 0 | Q9: 3258.8 | R9: 430710 | S9: 6678.68 | T9: 883268
C10: その他 | E10: 5.72 | F10: 0 | G10: 30.09 | H10: 0 | J10: 0 | K10: 1.58 | L10: 0 | N10: 0 | P10: 0 | Q10: 35.33 | R10: 0 | S10: 72.72 | T10: 0
B11: 南木曽町 | C11: 総 数 | E11: =SUM(E12,E15) -> 1029.7 | F11: =SUM(F12,F15) -> 216990 | G11: 5603.92 | H11: 1136213 | I11: 0 | J11: 0 | K11: 0 | L11: 0 | M11: 0 | N11: 0 | O11: 0 | P11: 0 | Q11: 3566.86 | R11: 738793 | S11: =SUM(S12,S15) -> 10200.48 | T11: =SUM(T12,T15) -> 2091996
C12: 立木地 | D12: 総 数 | E12: =SUM(E13:E14) -> 1014.88 | F12: 216990 | G12: 5509.3 | H12: 1136213 | I12: 0 | J12: 0 | K12: 0 | L12: 0 | M12: 0 | N12: 0 | O12: 0 | P12: 0 | Q12: 3522.51 | R12: 738793 | S12: =SUM(S13:S14) -> 10046.69 | T12: =SUM(T13:T14) -> 2091996
D13: 人工林 | E13: 577.46 | F13: 163082 | G13: 2910.61 | H13: 794411 | J13: 0 | L13: 0 | N13: 0 | P13: 0 | Q13: 1918.95 | R13: 524159 | S13: =E13+G13+I13+K13+M13+O13+Q13 -> 5407.02 | T13: 1481652
D14: 天然林 | E14: 437.42 | F14: 53908 | G14: 2598.69 | H14: 341802 | J14: 0 | L14: 0 | N14: 0 | P14: 0 | Q14: 1603.56 | R14: 214634 | S14: 4639.67 | T14: 610344
C15: その他 | E15: 14.82 | F15: 0 | G15: 94.62 | H15: 0 | J15: 0 | L15: 0 | N15: 0 | P15: 0 | Q15: 44.35 | R15: 0 | S15: 153.79 | T15: 0
B16: 木祖村 | C16: 総 数 | E16: =SUM(E17,E20) -> 1470.48 | F16: =SUM(F17,F20) -> 353915 | G16: 3934.88 | H16: 925359 | I16: 0 | J16: 0 | K16: 44.13 | L16: 6914 | M16: 0 | N16: 0 | O16: 0 | P16: 0 | Q16: 3984.73 | R16: 944153 | S16: =SUM(S17,S20) -> 9434.22 | T16: =SUM(T17,T20) -> 2230341
C17: 立木地 | D17: 総 数 | E17: =SUM(E18:E19) -> 1465.82 | F17: 353915 | G17: 3919.98 | H17: 925359 | I17: 0 | J17: 0 | K17: 44.13 | L17: 6914 | M17: 0 | N17: 0 | O17: 0 | P17: 0 | Q17: 3969.97 | R17: 944153 | S17: =SUM(S18:S19) -> 9399.9 | T17: =SUM(T18:T19) -> 2230341
D18: 人工林 | E18: 1099.41 | F18: 301220 | G18: 2815.15 | H18: 765571 | J18: 0 | K18: 12.08 | L18: 2919 | N18: 0 | P18: 0 | Q18: 3005.24 | R18: 806351 | S18: =E18+G18+I18+K18+M18+O18+Q18 -> 6931.88 | T18: 1876061
D19: 天然林 | E19: 366.41 | F19: 52695 | G19: 1104.83 | H19: 159788 | J19: 0 | K19: 32.05 | L19: 3995 | N19: 0 | P19: 0 | Q19: 964.73 | R19: 137802 | S19: 2468.02 | T19: 354280
C20: その他 | E20: 4.66 | F20: 0 | G20: 14.9 | H20: 0 | J20: 0 | L20: 0 | N20: 0 | P20: 0 | Q20: 14.76 | R20: 0 | S20: 34.32 | T20: 0
B21: 王滝村 | C21: 総 数 | E21: =SUM(E22,E25) -> 166.54 | F21: =SUM(F22,F25) -> 32611 | G21: 2277.75 | H21: 420771 | I21: 0 | J21: 0 | K21: 422.43 | L21: 69349 | M21: 0 | N21: 0 | O21: 7.86 | P21: 1008 | Q21: 3682.56 | R21: 689348 | S21: =SUM(S22,S25) -> 6557.14 | T21: =SUM(T22,T25) -> 1213087
C22: 立木地 | D22: 総 数 | E22: =SUM(E23:E24) -> 166.29 | F22: 32611 | G22: 2268.08 | H22: 420771 | I22: 0 | J22: 0 | K22: 421.64 | L22: 69349 | M22: 0 | N22: 0 | O22: 7.86 | P22: 1008 | Q22: 3669.13 | R22: 689348 | S22: =SUM(S23:S24) -> 6533 | T22: =SUM(T23:T24) -> 1213087
D23: 人工林 | E23: 97.14 | F23: 24172 | G23: 967.3 | H23: 249430 | J23: 0 | K23: 122.31 | L23: 34289 | N23: 0 | P23: 0 | Q23: 1616 | R23: 421176 | S23: =E23+G23+I23+K23+M23+O23+Q23 -> 2802.75 | T23: 729067
D24: 天然林 | E24: 69.15 | F24: 8439 | G24: 1300.78 | H24: 171341 | J24: 0 | K24: 299.33 | L24: 35060 | N24: 0 | O24: 7.86 | P24: 1008 | Q24: 2053.13 | R24: 268172 | S24: 3730.25 | T24: 484020
C25: その他 | E25: 0.25 | F25: 0 | G25: 9.67 | H25: 0 | J25: 0 | K25: 0.79 | L25: 0 | N25: 0 | P25: 0 | Q25: 13.43 | R25: 0 | S25: 24.14 | T25: 0
B26: 大桑村 | C26: 総 数 | E26: =SUM(E27,E30) -> 1305.41 | F26: =SUM(F27,F30) -> 240756 | G26: 3575.81 | H26: 683129 | I26: 0 | J26: 0 | K26: 173.09 | L26: 32742 | M26: 35.46 | N26: 8638 | O26: 0 | P26: 0 | Q26: 1134.1 | R26: 223757 | S26: =SUM(S27,S30) -> 6223.87 | T26: =SUM(T27,T30) -> 1189022
C27: 立木地 | D27: 総 数 | E27: =SUM(E28:E29) -> 1273.83 | F27: 240756 | G27: 3535.98 | H27: 683129 | I27: 0 | J27: 0 | K27: 168.61 | L27: 32742 | M27: 35.41 | N27: 8638 | O27: 0 | P27: 0 | Q27: 1113.19 | R27: 223757 | S27: =SUM(S28:S29) -> 6127.02 | T27: =SUM(T28:T29) -> 1189022
D28: 人工林 | E28: 921.07 | F28: 200801 | G28: 1933.92 | H28: 479231 | J28: 0 | K28: 97.64 | L28: 22914 | M28: 21.01 | N28: 6472 | P28: 0 | Q28: 613.62 | R28: 155870 | S28: =E28+G28+I28+K28+M28+O28+Q28 -> 3587.26 | T28: 865288
D29: 天然林 | E29: 352.76 | F29: 39955 | G29: 1602.06 | H29: 203898 | J29: 0 | K29: 70.97 | L29: 9828 | M29: 14.4 | N29: 2166 | P29: 0 | Q29: 499.57 | R29: 67887 | S29: 2539.76 | T29: 323734
C30: その他 | E30: 31.58 | F30: 0 | G30: 39.83 | H30: 0 | J30: 0 | K30: 4.48 | L30: 0 | M30: 0.05 | N30: 0 | P30: 0 | Q30: 20.91 | R30: 0 | S30: 96.85 | T30: 0
B31: 木曽町 | C31: 総 数 | E31: =SUM(E32,E35) -> 4782.68 | F31: =SUM(F32,F35) -> 832885 | G31: 23087.64 | H31: 4639870 | I31: 0 | J31: 0 | K31: 18.63 | L31: 4273 | M31: 6.25 | N31: 1553 | O31: 0 | P31: 0 | Q31: 24375.32 | R31: 4884684 | S31: =SUM(S32,S35) -> 52270.52 | T31: =SUM(T32,T35) -> 10363265
C32: 立木地 | D32: 総 数 | E32: =SUM(E33:E34) -> 4768.73 | F32: 832885 | G32: 22939.66 | H32: 4639864 | I32: 0 | J32: 0 | K32: 18.63 | L32: 4273 | M32: 6.25 | N32: 1553 | O32: 0 | P32: 0 | Q32: 24224.17 | R32: 4884678 | S32: =SUM(S33:S34) -> 51957.44 | T32: =SUM(T33:T34) -> 10363253
D33: 人工林 | E33: 1831.06 | F33: 480185 | G33: 11273.07 | H33: 2988598 | J33: 0 | K33: 8.67 | L33: 2117 | M33: 4.08 | N33: 1291 | P33: 0 | Q33: 11795.35 | R33: 3123900 | S33: =E33+G33+I33+K33+M33+O33+Q33 -> 24912.23 | T33: 6596091
D34: 天然林 | E34: 2937.67 | F34: 352700 | G34: 11666.59 | H34: 1651266 | J34: 0 | K34: 9.96 | L34: 2156 | M34: 2.17 | N34: 262 | P34: 0 | Q34: 12428.82 | R34: 1760778 | S34: 27045.21 | T34: 3767162
C35: その他 | E35: 13.95 | F35: 0 | G35: 147.98 | H35: 6 | J35: 0 | L35: 0 | N35: 0 | P35: 0 | Q35: 151.15 | R35: 6 | S35: 313.08 | T35: 12
B36: 木曽計 | C36: 総 数 | E36: =SUM(E6,E11,E16,E21,E26,E31) -> 10982.54 | F36: =SUM(F6,F11,F16,F21,F26,F31) -> 2060433 | G36: 41362.74 | H36: 8292102 | I36: 0 | J36: 0 | K36: 690.36 | L36: 118259 | M36: 43.84 | N36: 10764 | O36: 7.86 | P36: 1008 | Q36: 41666.07 | R36: 8319862 | S36: =SUM(S37,S40) -> 94753.41 | T36: =SUM(T37,T40) -> 18802428
C37: 立木地 | D37: 総 数 | E37: =SUM(E7,E12,E17,E22,E27,E32) -> 10911.56 | F37: 2060433 | G37: 41025.65 | H37: 8292096 | I37: 0 | J37: 0 | K37: 683.51 | L37: 118259 | M37: 43.79 | N37: 10764 | O37: 7.86 | P37: 1008 | Q37: 41386.14 | R37: 8319856 | S37: =SUM(S38:S39) -> 94058.51 | T37: =SUM(T38:T39) -> 18802416
D38: 人工林 | E38: =SUM(E8,E13,E18,E23,E28,E33) -> 5295.09 | F38: 1355049 | G38: 20807.83 | H38: 5511773 | I38: 0 | J38: 0 | K38: 250.59 | L38: 64851 | M38: 25.88 | N38: 8062 | O38: 0 | P38: 0 | Q38: 20577.53 | R38: 5439873 | S38: =E38+G38+I38+K38+M38+O38+Q38 -> 46956.92 | T38: 12379608
D39: 天然林 | E39: =SUM(E9,E14,E19,E24,E29,E34) -> 5616.47 | F39: 705384 | G39: 20217.82 | H39: 2780323 | I39: 0 | J39: 0 | K39: 432.92 | L39: 53408 | M39: 17.91 | N39: 2702 | O39: 7.86 | P39: 1008 | Q39: 20808.61 | R39: 2879983 | S39: 47101.59 | T39: 6422808
C40: その他 | E40: =SUM(E10,E15,E20,E25,E30,E35) -> 70.98 | F40: 0 | G40: 337.09 | H40: 6 | I40: 0 | J40: 0 | K40: 6.85 | L40: 0 | M40: 0.05 | N40: 0 | O40: 0 | P40: 0 | Q40: 279.93 | R40: 6 | S40: 694.9 | T40: 12
A41: 計画区計 | C41: 総 数 | E41: =SUM(E36,) -> 10982.54 | F41: =SUM(F36,) -> 2060433 | G41: 41362.74 | H41: 8292102 | I41: 0 | J41: 0 | K41: 690.36 | L41: 118259 | M41: 43.84 | N41: 10764 | O41: 7.86 | P41: 1008 | Q41: 41666.07 | R41: 8319862 | S41: =SUM(S42,S45) -> 94753.41 | T41: =SUM(T42,T45) -> 18802428
C42: 立木地 | D42: 総 数 | E42: =SUM(E37,) -> 10911.56 | F42: 2060433 | G42: 41025.65 | H42: 8292096 | I42: 0 | J42: 0 | K42: 683.51 | L42: 118259 | M42: 43.79 | N42: 10764 | O42: 7.86 | P42: 1008 | Q42: 41386.14 | R42: 8319856 | S42: =SUM(S43:S44) -> 94058.51 | T42: =SUM(T43:T44) -> 18802416
D43: 人工林 | E43: =SUM(E38,) -> 5295.09 | F43: 1355049 | G43: 20807.83 | H43: 5511773 | I43: 0 | J43: 0 | K43: 250.59 | L43: 64851 | M43: 25.88 | N43: 8062 | O43: 0 | P43: 0 | Q43: 20577.53 | R43: 5439873 | S43: =E43+G43+I43+K43+M43+O43+Q43 -> 46956.92 | T43: 12379608
D44: 天然林 | E44: =SUM(E39,) -> 5616.47 | F44: 705384 | G44: 20217.82 | H44: 2780323 | I44: 0 | J44: 0 | K44: 432.92 | L44: 53408 | M44: 17.91 | N44: 2702 | O44: 7.86 | P44: 1008 | Q44: 20808.61 | R44: 2879983 | S44: 47101.59 | T44: 6422808
C45: その他 | E45: =SUM(E40,) -> 70.98 | F45: 0 | G45: 337.09 | H45: 6 | I45: 0 | J45: 0 | K45: 6.85 | L45: 0 | M45: 0.05 | N45: 0 | O45: 0 | P45: 0 | Q45: 279.93 | R45: 6 | S45: 694.9 | T45: 12
Q46: 94701.89 | R46: 18637228

Sheet 中部山岳
A1: 第10-1表 市町村別・公益的機能別施業森林等区分別ゾーニング別・資源表
R2: （単位 面積：ha 蓄積：m3）
A3: 地域振興局 | B3: 市町村名 | C3: 区 分 | E3: 公益的機能別施業森林等区分別
E4: 水かん | G4: 山災/土壌 | I4: 快適環境 | K4: 保健 | M4: 文化 | O4: 独自 | Q4: 木材 | S4: 総数
E5: 面積 | F5: 蓄積 | G5: 面積 | H5: 蓄積 | I5: 面積 | J5: 蓄積 | K5: 面積 | L5: 蓄積 | M5: 面積 | N5: 蓄積 | O5: 面積 | P5: 蓄積 | Q5: 面積 | R5: 蓄積 | S5: 面積 | T5: 蓄積
A6: 松本 | B6: 松本市 | C6: 総 数 | E6: =SUM(E7,E10) -> 20467.76 | F6: =SUM(F7,F10) -> 3488144 | G6: 13409.16 | H6: 2333331 | I6: 0 | J6: 0 | K6: 81.79 | L6: 14955 | M6: 81.79 | N6: 14955 | O6: 0 | P6: 0 | Q6: 6680.71 | R6: 1326820 | S6: =SUM(S7,S10) -> 40721.21 | T6: =SUM(T7,T10) -> 7178205
C7: 立木地 | D7: 総 数 | E7: =SUM(E8:E9) -> 20037.14 | F7: 3488144 | G7: 13079.7 | H7: 2333331 | I7: 0 | J7: 0 | K7: 81 | L7: 14915 | M7: 81 | N7: 14915 | O7: 0 | P7: 0 | Q7: 6517.74 | R7: 1326820 | S7: =SUM(S8:S9) -> 39796.58 | T7: =SUM(T8:T9) -> 7178125
D8: 人工林 | E8: 10183.17 | F8: 2278495 | G8: 6352.07 | H8: 1463905 | J8: 0 | K8: 32.32 | L8: 7882 | M8: 32.32 | N8: 7882 | P8: 0 | Q8: 4228.73 | R8: 1025316 | S8: =E8+G8+I8+K8+M8+O8+Q8 -> 20828.61 | T8: 4783480
D9: 天然林 | E9: 9853.97 | F9: 1209649 | G9: 6727.63 | H9: 869426 | J9: 0 | K9: 48.68 | L9: 7033 | M9: 48.68 | N9: 7033 | P9: 0 | Q9: 2289.01 | R9: 301504 | S9: 18967.97 | T9: 2394645
C10: その他 | E10: 430.62 | F10: 0 | G10: 329.46 | H10: 0 | J10: 0 | K10: 0.79 | L10: 40 | M10: 0.79 | N10: 40 | P10: 0 | Q10: 162.97 | R10: 0 | S10: 924.63 | T10: 80
B11: 塩尻市 | C11: 総 数 | E11: =SUM(E12,E15) -> 11428.82 | F11: =SUM(F12,F15) -> 2388211 | G11: 711.86 | H11: 134364 | I11: 4997.2 | J11: 1053232 | K11: 91.44 | L11: 17013 | M11: 0 | N11: 0 | O11: 0 | P11: 0 | Q11: 13019.48 | R11: 2966203 | S11: =SUM(S12,S15) -> 30248.8 | T11: =SUM(T12,T15) -> 6559023
C12: 立木地 | D12: 総 数 | E12: =SUM(E13:E14) -> 11226.79 | F12: 2388211 | G12: 708.69 | H12: 134364 | I12: 4916.42 | J12: 1053232 | K12: 88.34 | L12: 17013 | M12: 0 | N12: 0 | O12: 0 | P12: 0 | Q12: 12901.43 | R12: 2966203 | S12: =SUM(S13:S14) -> 29841.67 | T12: =SUM(T13:T14) -> 6559023
D13: 人工林 | E13: 7037.24 | F13: 1695979 | G13: 579.04 | H13: 115678 | I13: 2759.86 | J13: 765169 | K13: 72.8 | L13: 14830 | N13: 0 | P13: 0 | Q13: 9479.87 | R13: 2336033 | S13: =E13+G13+I13+K13+M13+O13+Q13 -> 19928.81 | T13: 4927689
D14: 天然林 | E14: 4189.55 | F14: 692232 | G14: 129.65 | H14: 18686 | I14: 2156.56 | J14: 288063 | K14: 15.54 | L14: 2183 | N14: 0 | P14: 0 | Q14: 3421.56 | R14: 630170 | S14: 9912.86 | T14: 1631334
C15: その他 | E15: 202.03 | F15: 0 | G15: 3.17 | H15: 0 | I15: 80.78 | J15: 0 | K15: 3.1 | L15: 0 | N15: 0 | P15: 0 | Q15: 118.05 | R15: 0 | S15: 407.13 | T15: 0
B16: 安曇野市 | C16: 総 数 | E16: =SUM(E17,E20) -> 6102.45 | F16: =SUM(F17,F20) -> 1138032 | G16: 3433.01 | H16: 541477 | I16: 0 | J16: 0 | K16: 364.94 | L16: 56211 | M16: 0 | N16: 0 | O16: 0 | P16: 0 | Q16: 4657.22 | R16: 953507 | S16: =SUM(S17,S20) -> 14557.62 | T16: =SUM(T17,T20) -> 2689227
C17: 立木地 | D17: 総 数 | E17: =SUM(E18:E19) -> 5990.08 | F17: 1138032 | G17: 3335.01 | H17: 541477 | I17: 0 | J17: 0 | K17: 356.7 | L17: 56211 | M17: 0 | N17: 0 | O17: 0 | P17: 0 | Q17: 4576.36 | R17: 953507 | S17: =SUM(S18:S19) -> 14258.15 | T17: =SUM(T18:T19) -> 2689227
D18: 人工林 | E18: 3060.57 | F18: 719952 | G18: 1298.51 | H18: 285506 | J18: 0 | K18: 124.94 | L18: 28043 | N18: 0 | P18: 0 | Q18: 2199.23 | R18: 551911 | S18: =E18+G18+I18+K18+M18+O18+Q18 -> 6683.25 | T18: 1585412
D19: 天然林 | E19: 2929.51 | F19: 418080 | G19: 2036.5 | H19: 255971 | J19: 0 | K19: 231.76 | L19: 28168 | N19: 0 | P19: 0 | Q19: 2377.13 | R19: 401596 | S19: 7574.9 | T19: 1103815
C20: その他 | E20: 112.37 | F20: 0 | G20: 98 | H20: 0 | J20: 0 | K20: 8.24 | L20: 0 | N20: 0 | P20: 0 | Q20: 80.86 | R20: 0 | S20: 299.47 | T20: 0
B21: 麻績村 | C21: 総 数 | E21: =SUM(E22,E25) -> 1388.17 | F21: =SUM(F22,F25) -> 290529 | G21: 808.87 | H21: 150698 | I21: 0 | J21: 0 | K21: 294.49 | L21: 67817 | M21: 23.38 | N21: 4757 | O21: 0 | P21: 0 | Q21: 696.47 | R21: 174114 | S21: =SUM(S22,S25) -> 3211.38 | T21: =SUM(T22,T25) -> 687915
C22: 立木地 | D22: 総 数 | E22: =SUM(E23:E24) -> 1370.35 | F22: 290529 | G22: 785.76 | H22: 150698 | I22: 0 | J22: 0 | K22: 292.31 | L22: 67817 | M22: 22.13 | N22: 4757 | O22: 0 | P22: 0 | Q22: 689.08 | R22: 174114 | S22: =SUM(S23:S24) -> 3159.63 | T22: =SUM(T23:T24) -> 687915
D23: 人工林 | E23: 639.4 | F23: 179146 | G23: 329.08 | H23: 82623 | J23: 0 | K23: 203.13 | L23: 56733 | M23: 11.93 | N23: 2626 | P23: 0 | Q23: 331.56 | R23: 98542 | S23: =E23+G23+I23+K23+M23+O23+Q23 -> 1515.1 | T23: 419670
D24: 天然林 | E24: 730.95 | F24: 111383 | G24: 456.68 | H24: 68075 | J24: 0 | K24: 89.18 | L24: 11084 | M24: 10.2 | N24: 2131 | P24: 0 | Q24: 357.52 | R24: 75572 | S24: 1644.53 | T24: 268245
C25: その他 | E25: 17.82 | F25: 0 | G25: 23.11 | H25: 0 | J25: 0 | K25: 2.18 | L25: 0 | M25: 1.25 | N25: 0 | P25: 0 | Q25: 7.39 | R25: 0 | S25: 51.75 | T25: 0
B26: 生坂村 | C26: 総 数 | E26: =SUM(E27,E30) -> 71.22 | F26: =SUM(F27,F30) -> 8532 | G26: 2513.18 | H26: 331592 | I26: 0 | J26: 0 | K26: 5.67 | L26: 753 | M26: 0 | N26: 0 | O26: 0 | P26: 0 | Q26: 0 | R26: 0 | S26: =SUM(S27,S30) -> 2590.07 | T26: =SUM(T27,T30) -> 340877
C27: 立木地 | D27: 総 数 | E27: =SUM(E28:E29) -> 68.38 | F27: 8532 | G27: 2219.84 | H27: 331592 | I27: 0 | J27: 0 | K27: 5.67 | L27: 753 | M27: 0 | N27: 0 | O27: 0 | P27: 0 | Q27: 0 | R27: 0 | S27: =SUM(S28:S29) -> 2293.89 | T27: =SUM(T28:T29) -> 340877
D28: 人工林 | E28: 7.05 | F28: 1635 | G28: 361.38 | H28: 112661 | J28: 0 | K28: 1.55 | L28: 334 | N28: 0 | P28: 0 | R28: 0 | S28: =E28+G28+I28+K28+M28+O28+Q28 -> 369.98 | T28: 114630
D29: 天然林 | E29: 61.33 | F29: 6897 | G29: 1858.46 | H29: 218931 | J29: 0 | K29: 4.12 | L29: 419 | N29: 0 | P29: 0 | R29: 0 | S29: 1923.91 | T29: 226247
C30: その他 | E30: 2.84 | F30: 0 | G30: 293.34 | H30: 0 | J30: 0 | L30: 0 | N30: 0 | P30: 0 | R30: 0 | S30: 296.18 | T30: 0
B31: 山形村 | C31: 総 数 | E31: =SUM(E32,E35) -> 461.73 | F31: =SUM(F32,F35) -> 118017 | G31: 15.78 | H31: 3784 | I31: 0 | J31: 0 | K31: 38.84 | L31: 11324 | M31: 0 | N31: 0 | O31: 0 | P31: 0 | Q31: 758.21 | R31: 200642 | S31: =SUM(S32,S35) -> 1274.56 | T31: =SUM(T32,T35) -> 333767
C32: 立木地 | D32: 総 数 | E32: =SUM(E33:E34) -> 459.67 | F32: 118017 | G32: 14.86 | H32: 3784 | I32: 0 | J32: 0 | K32: 38.54 | L32: 11324 | M32: 0 | N32: 0 | O32: 0 | P32: 0 | Q32: 751.22 | R32: 200642 | S32: =SUM(S33:S34) -> 1264.29 | T32: =SUM(T33:T34) -> 333767
D33: 人工林 | E33: 375.78 | F33: 103771 | G33: 12.33 | H33: 3476 | J33: 0 | K33: 35.11 | L33: 10616 | N33: 0 | P33: 0 | Q33: 459.56 | R33: 138987 | S33: =E33+G33+I33+K33+M33+O33+Q33 -> 882.78 | T33: 256850
D34: 天然林 | E34: 83.89 | F34: 14246 | G34: 2.53 | H34: 308 | J34: 0 | K34: 3.43 | L34: 708 | N34: 0 | P34: 0 | Q34: 291.66 | R34: 61655 | S34: 381.51 | T34: 76917
C35: その他 | E35: 2.06 | F35: 0 | G35: 0.92 | H35: 0 | J35: 0 | K35: 0.3 | L35: 0 | N35: 0 | P35: 0 | Q35: 6.99 | R35: 0 | S35: 10.27 | T35: 0
B36: 朝日村 | C36: 総 数 | E36: =SUM(E37,E40) -> 5142.96 | F36: =SUM(F37,F40) -> 1044814 | G36: 24.51 | H36: 3644 | I36: 0 | J36: 0 | K36: 109.44 | L36: 22517 | M36: 0 | N36: 0 | O36: 0 | P36: 0 | Q36: 1270.54 | R36: 284265 | S36: =SUM(S37,S40) -> 6547.45 | T36: =SUM(T37,T40) -> 1355240
C37: 立木地 | D37: 総 数 | E37: =SUM(E38:E39) -> 5094.45 | F37: 1044523 | G37: 23.12 | H37: 3644 | I37: 0 | J37: 0 | K37: 109.31 | L37: 22517 | M37: 0 | N37: 0 | O37: 0 | P37: 0 | Q37: 1266.7 | R37: 284265 | S37: =SUM(S38:S39) -> 6493.58 | T37: =SUM(T38:T39) -> 1354949
D38: 人工林 | E38: 3780.61 | F38: 869474 | G38: 9.15 | H38: 1834 | J38: 0 | K38: 77.06 | L38: 18596 | N38: 0 | P38: 0 | Q38: 717.38 | R38: 196674 | S38: =E38+G38+I38+K38+M38+O38+Q38 -> 4584.2 | T38: 1086578
D39: 天然林 | E39: 1313.84 | F39: 175049 | G39: 13.97 | H39: 1810 | J39: 0 | K39: 32.25 | L39: 3921 | N39: 0 | P39: 0 | Q39: 549.32 | R39: 87591 | S39: 1909.38 | T39: 268371
C40: その他 | E40: 48.51 | F40: 291 | G40: 1.39 | H40: 0 | J40: 0 | K40: 0.13 | L40: 0 | N40: 0 | P40: 0 | Q40: 3.84 | R40: 0 | S40: 53.87 | T40: 291
B41: 筑北村 | C41: 総 数 | E41: =SUM(E42,E45) -> 3144.69 | F41: =SUM(F42,F45) -> 518945 | G41: 2049.88 | H41: 292453 | I41: 0 | J41: 0 | K41: 0 | L41: 0 | M41: 0 | N41: 0 | O41: 0 | P41: 0 | Q41: 429.64 | R41: 68924 | S41: =SUM(S42,S45) -> 5624.21 | T41: =SUM(T42,T45) -> 880322
C42: 立木地 | D42: 総 数 | E42: =SUM(E43:E44) -> 3071.64 | F42: 518945 | G42: 1814.67 | H42: 292453 | I42: 0 | J42: 0 | K42: 0 | L42: 0 | M42: 0 | N42: 0 | O42: 0 | P42: 0 | Q42: 405.19 | R42: 68924 | S42: =SUM(S43:S44) -> 5291.5 | T42: =SUM(T43:T44) -> 880322
D43: 人工林 | E43: 1256.75 | F43: 306119 | G43: 770.18 | H43: 159900 | J43: 0 | L43: 0 | N43: 0 | P43: 0 | Q43: 190.11 | R43: 36624 | S43: =E43+G43+I43+K43+M43+O43+Q43 -> 2217.04 | T43: 502643
D44: 天然林 | E44: 1814.89 | F44: 212826 | G44: 1044.49 | H44: 132553 | J44: 0 | L44: 0 | N44: 0 | P44: 0 | Q44: 215.08 | R44: 32300 | S44: 3074.46 | T44: 377679
C45: その他 | E45: 73.05 | F45: 0 | G45: 235.21 | H45: 0 | J45: 0 | L45: 0 | N45: 0 | P45: 0 | Q45: 24.45 | R45: 0 | S45: 332.71 | T45: 0
B46: 松本計 | C46: 総 数 | E46: =SUM(E6,E11,E16,E21,E26,E31,E36,E41) -> 48207.8 | F46: =SUM(F6,F11,F16,F21,F26,F31,F36,F41) -> 8995224 | G46: 22966.25 | H46: 3791343 | I46: 4997.2 | J46: 1053232 | K46: 986.61 | L46: 190590 | M46: 105.17 | N46: 19712 | O46: 0 | P46: 0 | Q46: 27512.27 | R46: 5974475 | S46: =SUM(S47,S50) -> 104775.3 | T46: =SUM(T47,T50) -> 20024576
C47: 立木地 | D47: 総 数 | E47: =SUM(E7,E12,E17,E22,E27,E32,E37,E42) -> 47318.5 | F47: 8994933 | G47: 21981.65 | H47: 3791343 | I47: 4916.42 | J47: 1053232 | K47: 971.87 | L47: 190550 | M47: 103.13 | N47: 19672 | O47: 0 | P47: 0 | Q47: 27107.72 | R47: 5974475 | S47: =SUM(S48:S49) -> 102399.29 | T47: =SUM(T48:T49) -> 20024205
D48: 人工林 | E48: =SUM(E8,E13,E18,E23,E28,E33,E38,E43) -> 26340.57 | F48: 6154571 | G48: 9711.74 | H48: 2225583 | I48: 2759.86 | J48: 765169 | K48: 546.91 | L48: 137034 | M48: 44.25 | N48: 10508 | O48: 0 | P48: 0 | Q48: 17606.44 | R48: 4384087 | S48: =E48+G48+I48+K48+M48+O48+Q48 -> 57009.77 | T48: 13676952
D49: 天然林 | E49: =SUM(E9,E14,E19,E24,E29,E34,E39,E44) -> 20977.93 | F49: 2840362 | G49: 12269.91 | H49: 1565760 | I49: 2156.56 | J49: 288063 | K49: 424.96 | L49: 53516 | M49: 58.88 | N49: 9164 | O49: 0 | P49: 0 | Q49: 9501.28 | R49: 1590388 | S49: 45389.52 | T49: 6347253
C50: その他 | E50: =SUM(E10,E15,E20,E25,E30,E35,E40,E45) -> 889.3 | F50: 291 | G50: 984.6 | H50: 0 | I50: 80.78 | J50: 0 | K50: 14.74 | L50: 40 | M50: 2.04 | N50: 40 | O50: 0 | P50: 0 | Q50: 404.55 | R50: 0 | S50: 2376.01 | T50: 371
A51: 北アルプス | B51: 大町市 | C51: 総 数 | E51: =SUM(E52,E55) -> 15586.32 | F51: =SUM(F52,F55) -> 2483345 | G51: 11454.62 | H51: 1807100 | I51: 43.55 | J51: 6074 | K51: 71.7 | L51: 13076 | M51: 591.56 | N51: 112275 | O51: 3.75 | P51: 964 | Q51: 10758.65 | R51: 1818587 | S51: =SUM(S52,S55) -> 38510.15 | T51: =SUM(T52,T55) -> 6241421
C52: 立木地 | D52: 総 数 | E52: =SUM(E53:E54) -> 15476.38 | F52: 2483345 | G52: 11377.74 | H52: 1807100 | I52: 42.53 | J52: 6074 | K52: 69.38 | L52: 13076 | M52: 591.16 | N52: 112275 | O52: 3.75 | P52: 964 | Q52: 10670.87 | R52: 1818587 | S52: =SUM(S53:S54) -> 38231.81 | T52: =SUM(T53:T54) -> 6241421
D53: 人工林 | E53: 5887.03 | F53: 1422829 | G53: 4276.99 | H53: 1011889 | I53: 7.37 | J53: 1662 | K53: 30.52 | L53: 8221 | M53: 217.94 | N53: 68917 | O53: 3.35 | P53: 934 | Q53: 5044.41 | R53: 1176849 | S53: =E53+G53+I53+K53+M53+O53+Q53 -> 15467.61 | T53: 3691301
D54: 天然林 | E54: 9589.35 | F54: 1060516 | G54: 7100.75 | H54: 795211 | I54: 35.16 | J54: 4412 | K54: 38.86 | L54: 4855 | M54: 373.22 | N54: 43358 | O54: 0.4 | P54: 30 | Q54: 5626.46 | R54: 641738 | S54: 22764.2 | T54: 2550120
C55: その他 | E55: 109.94 | F55: 0 | G55: 76.88 | H55: 0 | I55: 1.02 | J55: 0 | K55: 2.32 | L55: 0 | M55: 0.4 | N55: 0 | P55: 0 | Q55: 87.78 | R55: 0 | S55: 278.34 | T55: 0
B56: 池田町 | C56: 総 数 | E56: =SUM(E57,E60) -> 75.45 | F56: =SUM(F57,F60) -> 12942 | G56: 1083.18 | H56: 181671 | I56: 0 | J56: 0 | K56: 60.59 | L56: 10632 | M56: 0 | N56: 0 | O56: 0 | P56: 0 | Q56: 1184.38 | R56: 196962 | S56: =SUM(S57,S60) -> 2403.6 | T56: =SUM(T57,T60) -> 402207
C57: 立木地 | D57: 総 数 | E57: =SUM(E58:E59) -> 75.18 | F57: 12942 | G57: 1078.49 | H57: 181671 | I57: 0 | J57: 0 | K57: 60.32 | L57: 10632 | M57: 0 | N57: 0 | O57: 0 | P57: 0 | Q57: 1179.42 | R57: 196962 | S57: =SUM(S58:S59) -> 2393.41 | T57: =SUM(T58:T59) -> 402207
D58: 人工林 | E58: 40.03 | F58: 7716 | G58: 352.57 | H58: 92430 | J58: 0 | K58: 35.55 | L58: 6861 | N58: 0 | P58: 0 | Q58: 408.29 | R58: 101918 | S58: =E58+G58+I58+K58+M58+O58+Q58 -> 836.44 | T58: 208925
D59: 天然林 | E59: 35.15 | F59: 5226 | G59: 725.92 | H59: 89241 | J59: 0 | K59: 24.77 | L59: 3771 | N59: 0 | P59: 0 | Q59: 771.13 | R59: 95044 | S59: 1556.97 | T59: 193282
C60: その他 | E60: 0.27 | F60: 0 | G60: 4.69 | H60: 0 | J60: 0 | K60: 0.27 | L60: 0 | N60: 0 | P60: 0 | Q60: 4.96 | R60: 0 | S60: 10.19 | T60: 0
A61: 北アルプス | B61: 松川村 | C61: 総 数 | E61: =SUM(E62,E65) -> 237.07 | F61: =SUM(F62,F65) -> 42649 | G61: 525.5 | H61: 91043 | I61: 0 | J61: 0 | K61: 140.08 | L61: 29579 | M61: 0 | N61: 0 | O61: 0 | P61: 0 | Q61: 1667.71 | R61: 283824 | S61: =SUM(S62,S65) -> 2570.36 | T61: =SUM(T62,T65) -> 447095
C62: 立木地 | D62: 総 数 | E62: =SUM(E63:E64) -> 223.93 | F62: 42649 | G62: 524.44 | H62: 91043 | I62: 0 | J62: 0 | K62: 138.28 | L62: 29579 | M62: 0 | N62: 0 | O62: 0 | P62: 0 | Q62: 1643.46 | R62: 283824 | S62: =SUM(S63:S64) -> 2530.11 | T62: =SUM(T63:T64) -> 447095
D63: 人工林 | E63: 127.79 | F63: 25119 | G63: 155.23 | H63: 37260 | J63: 0 | K63: 74.86 | L63: 18996 | N63: 0 | P63: 0 | Q63: 527.15 | R63: 111443 | S63: =E63+G63+I63+K63+M63+O63+Q63 -> 885.03 | T63: 192818
D64: 天然林 | E64: 96.14 | F64: 17530 | G64: 369.21 | H64: 53783 | J64: 0 | K64: 63.42 | L64: 10583 | N64: 0 | P64: 0 | Q64: 1116.31 | R64: 172381 | S64: 1645.08 | T64: 254277
C65: その他 | E65: 13.14 | F65: 0 | G65: 1.06 | H65: 0 | J65: 0 | K65: 1.8 | L65: 0 | N65: 0 | P65: 0 | Q65: 24.25 | R65: 0 | S65: 40.25 | T65: 0
B66: 白馬村 | C66: 総 数 | E66: =SUM(E67,E70) -> 1460.56 | F66: =SUM(F67,F70) -> 190756 | G66: 2855.28 | H66: 154206 | I66: 0 | J66: 0 | K66: 160.34 | L66: 35898 | M66: 0 | N66: 0 | O66: 0 | P66: 0 | Q66: 7697.11 | R66: 1158907 | S66: =SUM(S67,S70) -> 12173.29 | T66: =SUM(T67,T70) -> 1539767
C67: 立木地 | D67: 総 数 | E67: =SUM(E68:E69) -> 1457.22 | F67: 190756 | G67: 1335.66 | H67: 154206 | I67: 0 | J67: 0 | K67: 159.69 | L67: 35898 | M67: 0 | N67: 0 | O67: 0 | P67: 0 | Q67: 7610.3 | R67: 1158907 | S67: =SUM(S68:S69) -> 10562.87 | T67: =SUM(T68:T69) -> 1539767
D68: 人工林 | E68: 390.12 | F68: 91142 | G68: 149.54 | H68: 41378 | J68: 0 | K68: 88.31 | L68: 28970 | N68: 0 | P68: 0 | Q68: 1988.89 | R68: 592789 | S68: =E68+G68+I68+K68+M68+O68+Q68 -> 2616.86 | T68: 754279
D69: 天然林 | E69: 1067.1 | F69: 99614 | G69: 1186.12 | H69: 112828 | J69: 0 | K69: 71.38 | L69: 6928 | N69: 0 | P69: 0 | Q69: 5621.41 | R69: 566118 | S69: 7946.01 | T69: 785488
C70: その他 | E70: 3.34 | F70: 0 | G70: 1519.62 | H70: 0 | J70: 0 | K70: 0.65 | L70: 0 | N70: 0 | P70: 0 | Q70: 86.81 | R70: 0 | S70: 1610.42 | T70: 0
B71: 小谷村 | C71: 総 数 | E71: =SUM(E72,E75) -> 5047.99 | F71: =SUM(F72,F75) -> 705378 | G71: 5236.15 | H71: 856845 | I71: 0 | J71: 0 | K71: 1852.76 | L71: 219685 | M71: 0 | N71: 0 | O71: 0 | P71: 0 | Q71: 12950.01 | R71: 2028238 | S71: =SUM(S72,S75) -> 25086.91 | T71: =SUM(T72,T75) -> 3810146
C72: 立木地 | D72: 総 数 | E72: =SUM(E73:E74) -> 4802.05 | F72: 680907 | G72: 5090.3 | H72: 856845 | I72: 0 | J72: 0 | K72: 1644.97 | L72: 195214 | M72: 0 | N72: 0 | O72: 0 | P72: 0 | Q72: 12544.21 | R72: 2003767 | S72: =SUM(S73:S74) -> 24081.53 | T72: =SUM(T73:T74) -> 3736733
D73: 人工林 | E73: 932.39 | F73: 285848 | G73: 1246.41 | H73: 467962 | J73: 0 | K73: 121.83 | L73: 37277 | N73: 0 | P73: 0 | Q73: 2850.8 | R73: 1017780 | S73: =E73+G73+I73+K73+M73+O73+Q73 -> 5151.43 | T73: =F73+H73+J73+L73+N73+P73+R73 -> 1808867
D74: 天然林 | E74: 3869.66 | F74: 395059 | G74: 3843.89 | H74: 388883 | J74: 0 | K74: 1523.14 | L74: 157937 | N74: 0 | P74: 0 | Q74: 9693.41 | R74: 985987 | S74: =E74+G74+I74+K74+M74+O74+Q74 -> 18930.1 | T74: 1927866
C75: その他 | E75: 245.94 | F75: 24471 | G75: 145.85 | H75: 0 | J75: 0 | K75: 207.79 | L75: 24471 | N75: 0 | P75: 0 | Q75: 405.8 | R75: 24471 | S75: 1005.38 | T75: 73413
B76: 北アルプス計 | C76: 総 数 | E76: =SUM(E51,E56,E61,E66,E71) -> 22407.39 | F76: =SUM(F51,F56,F61,F66,F71) -> 3435070 | G76: 21154.73 | H76: 3090865 | I76: 43.55 | J76: 6074 | K76: 2285.47 | L76: 308870 | M76: 591.56 | N76: 112275 | O76: 3.75 | P76: 964 | Q76: 34257.86 | R76: 5486518 | S76: =SUM(S77,S80) -> 80744.31 | T76: =SUM(T77,T80) -> 12440636
C77: 立木地 | D77: 総 数 | E77: =SUM(E52,E57,E62,E67,E72) -> 22034.76 | F77: 3410599 | G77: 19406.63 | H77: 3090865 | I77: 42.53 | J77: 6074 | K77: 2072.64 | L77: 284399 | M77: 591.16 | N77: 112275 | O77: 3.75 | P77: 964 | Q77: 33648.26 | R77: 5462047 | S77: =SUM(S78:S79) -> 77799.73 | T77: =SUM(T78:T79) -> 12367223
D78: 人工林 | E78: =SUM(E53,E58,E63,E68,E73) -> 7377.36 | F78: 1832654 | G78: 6180.74 | H78: 1650919 | I78: 7.37 | J78: 1662 | K78: 351.07 | L78: 100325 | M78: 217.94 | N78: 68917 | O78: 3.35 | P78: 934 | Q78: 10819.54 | R78: 3000779 | S78: =E78+G78+I78+K78+M78+O78+Q78 -> 24957.37 | T78: =F78+H78+J78+L78+N78+P78+R78 -> 6656190
D79: 天然林 | E79: =SUM(E54,E59,E64,E69,E74) -> 14657.4 | F79: 1577945 | G79: 13225.89 | H79: 1439946 | I79: 35.16 | J79: 4412 | K79: 1721.57 | L79: 184074 | M79: 373.22 | N79: 43358 | O79: 0.4 | P79: 30 | Q79: 22828.72 | R79: 2461268 | S79: 52842.36 | T79: 5711033
C80: その他 | E80: =SUM(E55,E60,E65,E70,E75) -> 372.63 | F80: 24471 | G80: 1748.1 | H80: 0 | I80: 1.02 | J80: 0 | K80: 212.83 | L80: 24471 | M80: 0.4 | N80: 0 | O80: 0 | P80: 0 | Q80: 609.6 | R80: 24471 | S80: 2944.58 | T80: 73413
A81: 計画区計 | C81: 総 数 | E81: =SUM(E46,E76,) -> 70615.19 | F81: =SUM(F46,F76,) -> 12430294 | G81: 44120.98 | H81: 6882208 | I81: 5040.75 | J81: 1059306 | K81: 3272.08 | L81: 499460 | M81: 696.73 | N81: 131987 | O81: 3.75 | P81: 964 | Q81: 61770.13 | R81: 11460993 | S81: =SUM(S82,S85) -> 185519.61 | T81: =SUM(T82,T85) -> 32465212
C82: 立木地 | D82: 総 数 | E82: =SUM(E47,E77,) -> 69353.26 | F82: 12405532 | G82: 41388.28 | H82: 6882208 | I82: 4958.95 | J82: 1059306 | K82: 3044.51 | L82: 474949 | M82: 694.29 | N82: 131947 | O82: 3.75 | P82: 964 | Q82: 60755.98 | R82: 11436522 | S82: =SUM(S83:S84) -> 180199.02 | T82: =SUM(T83:T84) -> 32391428
D83: 人工林 | E83: =SUM(E48,E78,) -> 33717.93 | F83: 7987225 | G83: 15892.48 | H83: 3876502 | I83: 2767.23 | J83: 766831 | K83: 897.98 | L83: 237359 | M83: 262.19 | N83: 79425 | O83: 3.35 | P83: 934 | Q83: 28425.98 | R83: 7384866 | S83: =E83+G83+I83+K83+M83+O83+Q83 -> 81967.14 | T83: =F83+H83+J83+L83+N83+P83+R83 -> 20333142
D84: 天然林 | E84: =SUM(E49,E79,) -> 35635.33 | F84: 4418307 | G84: 25495.8 | H84: 3005706 | I84: 2191.72 | J84: 292475 | K84: 2146.53 | L84: 237590 | M84: 432.1 | N84: 52522 | O84: 0.4 | P84: 30 | Q84: 32330 | R84: 4051656 | S84: 98231.88 | T84: 12058286
C85: その他 | E85: =SUM(E50,E80,) -> 1261.93 | F85: 24762 | G85: 2732.7 | H85: 0 | I85: 81.8 | J85: 0 | K85: 227.57 | L85: 24511 | M85: 2.44 | N85: 40 | O85: 0 | P85: 0 | Q85: 1014.15 | R85: 24471 | S85: 5320.59 | T85: 73784
Q86: 197793.71 | R86: 34330545

Sheet 千曲川下流
A1: 第10-1表 市町村別・公益的機能別施業森林等区分別ゾーニング別・資源表
R2: （単位 面積：ha 蓄積：m3）
A3: 地域振興局 | B3: 市町村名 | C3: 区 分 | E3: 公益的機能別施業森林等区分別
E4: 水かん | G4: 山災/土壌 | I4: 快適環境 | K4: 保健 | M4: 文化 | O4: 独自 | Q4: 木材 | S4: 総数
E5: 面積 | F5: 蓄積 | G5: 面積 | H5: 蓄積 | I5: 面積 | J5: 蓄積 | K5: 面積 | L5: 蓄積 | M5: 面積 | N5: 蓄積 | O5: 面積 | P5: 蓄積 | Q5: 面積 | R5: 蓄積 | S5: 面積 | T5: 蓄積
A6: 長野 | B6: 長野市 | C6: 総 数 | E6: =SUM(E7,E10) -> 41408.69 | F6: =SUM(F7,F10) -> 9737554 | G6: 3666.68 | H6: 790043 | I6: 0 | J6: 0 | K6: 8.23 | L6: 1408 | M6: 0 | N6: 0 | O6: 0 | P6: 0 | Q6: 10926.33 | R6: 3317372 | S6: =SUM(S7,S10) -> 56009.93 | T6: =SUM(T7,T10) -> 13846377
C7: 立木地 | D7: 総 数 | E7: =SUM(E8:E9) -> 39963.95 | F7: 9737554 | G7: 3486.09 | H7: 790043 | I7: 0 | J7: 0 | K7: 8.2 | L7: 1408 | M7: 0 | N7: 0 | O7: 0 | P7: 0 | Q7: 10667.54 | R7: 3317372 | S7: =SUM(S8:S9) -> 54125.78 | T7: =SUM(T8:T9) -> 13846377
D8: 人工林 | E8: 18376.04 | F8: 7017900 | G8: 1440.31 | H8: 545413 | J8: 0 | K8: 1.71 | L8: 515 | N8: 0 | P8: 0 | Q8: 8662.34 | R8: 3060679 | S8: =E8+G8+I8+K8+M8+O8+Q8 -> 28480.4 | T8: 10624507
D9: 天然林 | E9: 21587.91 | F9: 2719654 | G9: 2045.78 | H9: 244630 | J9: 0 | K9: 6.49 | L9: 893 | N9: 0 | P9: 0 | Q9: 2005.2 | R9: 256693 | S9: 25645.38 | T9: 3221870
C10: その他 | E10: 1444.74 | F10: 0 | G10: 180.59 | H10: 0 | J10: 0 | K10: 0.03 | L10: 0 | N10: 0 | P10: 0 | Q10: 258.79 | R10: 0 | S10: 1884.15 | T10: 0
B11: 須坂市 | C11: 総 数 | E11: =SUM(E12,E15) -> 2043.84 | F11: =SUM(F12,F15) -> 442010 | G11: 6011.48 | H11: 1651548 | I11: 0 | J11: 0 | K11: 396.9 | L11: 82119 | M11: 0 | N11: 0 | O11: 0 | P11: 0 | Q11: 620.72 | R11: 170885 | S11: =SUM(S12,S15) -> 9072.94 | T11: =SUM(T12,T15) -> 2346562
C12: 立木地 | D12: 総 数 | E12: =SUM(E13:E14) -> 1905.08 | F12: 442010 | G12: 5690.16 | H12: 1649511 | I12: 0 | J12: 0 | K12: 379.15 | L12: 82119 | M12: 0 | N12: 0 | O12: 0 | P12: 0 | Q12: 599.31 | R12: 168949 | S12: =SUM(S13:S14) -> 8573.7 | T12: =SUM(T13:T14) -> 2342589
D13: 人工林 | E13: 1029.46 | F13: 333620 | G13: 3510.68 | H13: 1370970 | J13: 0 | K13: 169.72 | L13: 58869 | N13: 0 | P13: 0 | Q13: 366.9 | R13: 136262 | S13: =E13+G13+I13+K13+M13+O13+Q13 -> 5076.76 | T13: 1899721
D14: 天然林 | E14: 875.62 | F14: 108390 | G14: 2179.48 | H14: 278541 | J14: 0 | K14: 209.43 | L14: 23250 | N14: 0 | P14: 0 | Q14: 232.41 | R14: 32687 | S14: 3496.94 | T14: 442868
C15: その他 | E15: 138.76 | F15: 0 | G15: 321.32 | H15: 2037 | J15: 0 | K15: 17.75 | L15: 0 | N15: 0 | P15: 0 | Q15: 21.41 | R15: 1936 | S15: 499.24 | T15: 3973
B16: 千曲市 | C16: 総 数 | E16: =SUM(E17,E20) -> 3010.25 | F16: =SUM(F17,F20) -> 689041 | G16: 2602.07 | H16: 505047 | I16: 0 | J16: 0 | K16: 253.2 | L16: 62627 | M16: 0 | N16: 0 | O16: 0 | P16: 0 | Q16: 2654.14 | R16: 650050 | S16: =SUM(S17,S20) -> 8519.66 | T16: =SUM(T17,T20) -> 1906765
C17: 立木地 | D17: 総 数 | E17: =SUM(E18:E19) -> 2957.89 | F17: 689041 | G17: 2516.33 | H17: 505047 | I17: 0 | J17: 0 | K17: 245.31 | L17: 62627 | M17: 0 | N17: 0 | O17: 0 | P17: 0 | Q17: 2586.84 | R17: 650050 | S17: =SUM(S18:S19) -> 8306.37 | T17: =SUM(T18:T19) -> 1906765
D18: 人工林 | E18: 1711.06 | F18: 510902 | G18: 832.27 | H18: 259384 | J18: 0 | K18: 181.82 | L18: 54517 | N18: 0 | P18: 0 | Q18: 1719.29 | R18: 522575 | S18: =E18+G18+I18+K18+M18+O18+Q18 -> 4444.44 | T18: 1347378
D19: 天然林 | E19: 1246.83 | F19: 178139 | G19: 1684.06 | H19: 245663 | J19: 0 | K19: 63.49 | L19: 8110 | N19: 0 | P19: 0 | Q19: 867.55 | R19: 127475 | S19: 3861.93 | T19: 559387
C20: その他 | E20: 52.36 | F20: 0 | G20: 85.74 | H20: 0 | J20: 0 | K20: 7.89 | L20: 0 | N20: 0 | P20: 0 | Q20: 67.3 | R20: 0 | S20: 213.29 | T20: 0
B21: 坂城町 | C21: 総 数 | E21: =SUM(E22,E25) -> 1104.65 | F21: =SUM(F22,F25) -> 265323 | G21: 592.66 | H21: 135717 | I21: 0 | J21: 0 | K21: 47.63 | L21: 10965 | M21: 0 | N21: 0 | O21: 0 | P21: 0 | Q21: 1150.29 | R21: 286227 | S21: =SUM(S22,S25) -> 2895.23 | T21: =SUM(T22,T25) -> 698232
C22: 立木地 | D22: 総 数 | E22: =SUM(E23:E24) -> 1068.53 | F22: 264935 | G22: 584.54 | H22: 135497 | I22: 0 | J22: 0 | K22: 46.43 | L22: 10965 | M22: 0 | N22: 0 | O22: 0 | P22: 0 | Q22: 1114.15 | R22: 285619 | S22: =SUM(S23:S24) -> 2813.65 | T22: =SUM(T23:T24) -> 697016
D23: 人工林 | E23: 624.15 | F23: 194466 | G23: 262.12 | H23: 83195 | J23: 0 | K23: 15.97 | L23: 4976 | N23: 0 | P23: 0 | Q23: 736.43 | R23: 226356 | S23: =E23+G23+I23+K23+M23+O23+Q23 -> 1638.67 | T23: 508993
D24: 天然林 | E24: 444.38 | F24: 70469 | G24: 322.42 | H24: 52302 | J24: 0 | K24: 30.46 | L24: 5989 | N24: 0 | P24: 0 | Q24: 377.72 | R24: 59263 | S24: 1174.98 | T24: 188023
C25: その他 | E25: 36.12 | F25: 388 | G25: 8.12 | H25: 220 | J25: 0 | K25: 1.2 | L25: 0 | N25: 0 | P25: 0 | Q25: 36.14 | R25: 608 | S25: 81.58 | T25: 1216
B26: 小布施町 | C26: 総 数 | E26: =SUM(E27,E30) -> 0 | F26: =SUM(F27,F30) -> 0 | G26: 46.42 | H26: 4608 | I26: 80.5 | J26: 17493 | K26: 109.7 | L26: 20065 | M26: 0 | N26: 0 | O26: 0 | P26: 0 | Q26: 87.76 | R26: 18414 | S26: =SUM(S27,S30) -> 324.38 | T26: =SUM(T27,T30) -> 60580
C27: 立木地 | D27: 総 数 | E27: =SUM(E28:E29) -> 0 | F27: 0 | G27: 33.31 | H27: 4608 | I27: 77.39 | J27: 17493 | K27: 109.17 | L27: 20065 | M27: 0 | N27: 0 | O27: 0 | P27: 0 | Q27: 87.28 | R27: 18414 | S27: =SUM(S28:S29) -> 307.15 | T27: =SUM(T28:T29) -> 60580
D28: 人工林 | F28: 0 | G28: 9.59 | H28: 1892 | I28: 27.67 | J28: 11897 | K28: 21.58 | L28: 10002 | N28: 0 | P28: 0 | Q28: 26.01 | R28: 11701 | S28: =E28+G28+I28+K28+M28+O28+Q28 -> 84.85 | T28: 35492
D29: 天然林 | F29: 0 | G29: 23.72 | H29: 2716 | I29: 49.72 | J29: 5596 | K29: 87.59 | L29: 10063 | N29: 0 | P29: 0 | Q29: 61.27 | R29: 6713 | S29: 222.3 | T29: 25088
C30: その他 | F30: 0 | G30: 13.11 | H30: 0 | I30: 3.11 | J30: 0 | K30: 0.53 | L30: 0 | N30: 0 | P30: 0 | Q30: 0.48 | R30: 0 | S30: 17.23 | T30: 0
B31: 高山村 | C31: 総 数 | E31: =SUM(E32,E35) -> 5569.6 | F31: =SUM(F32,F35) -> 1131018 | G31: 1803.88 | H31: 429203 | I31: 0 | J31: 0 | K31: 729.59 | L31: 107969 | M31: 0 | N31: 0 | O31: 0 | P31: 0 | Q31: 597.26 | R31: 134854 | S31: =SUM(S32,S35) -> 8700.33 | T31: =SUM(T32,T35) -> 1803044
C32: 立木地 | D32: 総 数 | E32: =SUM(E33:E34) -> 5033.69 | F32: 1131018 | G32: 1748.8 | H32: 429203 | I32: 0 | J32: 0 | K32: 602.33 | L32: 107969 | M32: 0 | N32: 0 | O32: 0 | P32: 0 | Q32: 585.82 | R32: 134854 | S32: =SUM(S33:S34) -> 7970.64 | T32: =SUM(T33:T34) -> 1803044
D33: 人工林 | E33: 2402.52 | F33: 831670 | G33: 784.78 | H33: 319638 | J33: 0 | K33: 135.27 | L33: 57147 | N33: 0 | P33: 0 | Q33: 419.67 | R33: 115910 | S33: =E33+G33+I33+K33+M33+O33+Q33 -> 3742.24 | T33: 1324365
D34: 天然林 | E34: 2631.17 | F34: 299348 | G34: 964.02 | H34: 109565 | J34: 0 | K34: 467.06 | L34: 50822 | N34: 0 | P34: 0 | Q34: 166.15 | R34: 18944 | S34: 4228.4 | T34: 478679
C35: その他 | E35: 535.91 | F35: 0 | G35: 55.08 | H35: 0 | J35: 0 | K35: 127.26 | L35: 0 | N35: 0 | P35: 0 | Q35: 11.44 | R35: 0 | S35: 729.69 | T35: 0
B36: 信濃町 | C36: 総 数 | E36: =SUM(E37,E40) -> 366.08 | F36: =SUM(F37,F40) -> 80392 | G36: 378.64 | H36: 85806 | I36: 0 | J36: 0 | K36: 12.38 | L36: 1846 | M36: 0 | N36: 0 | O36: 0 | P36: 0 | Q36: 4891.67 | R36: 1175828 | S36: =SUM(S37,S40) -> 5648.77 | T36: =SUM(T37,T40) -> 1343872
C37: 立木地 | D37: 総 数 | E37: =SUM(E38:E39) -> 357.94 | F37: 80392 | G37: 375.43 | H37: 85806 | I37: 0 | J37: 0 | K37: 12 | L37: 1846 | M37: 0 | N37: 0 | O37: 0 | P37: 0 | Q37: 4818.66 | R37: 1175828 | S37: =SUM(S38:S39) -> 5564.03 | T37: =SUM(T38:T39) -> 1343872
D38: 人工林 | E38: 142.29 | F38: 56224 | G38: 123.36 | H38: 54269 | J38: 0 | K38: 0.6 | L38: 341 | N38: 0 | P38: 0 | Q38: 2214.05 | R38: 858701 | S38: =E38+G38+I38+K38+M38+O38+Q38 -> 2480.3 | T38: 969535
D39: 天然林 | E39: 215.65 | F39: 24168 | G39: 252.07 | H39: 31537 | J39: 0 | K39: 11.4 | L39: 1505 | N39: 0 | P39: 0 | Q39: 2604.61 | R39: 317127 | S39: 3083.73 | T39: 374337
C40: その他 | E40: 8.14 | F40: 0 | G40: 3.21 | H40: 0 | J40: 0 | K40: 0.38 | L40: 0 | N40: 0 | P40: 0 | Q40: 73.01 | R40: 0 | S40: 84.74 | T40: 0
B41: 小川村 | C41: 総 数 | E41: =SUM(E42,E45) -> 2860.64 | F41: =SUM(F42,F45) -> 605436 | G41: 2741.29 | H41: 658722 | I41: 0 | J41: 0 | K41: 0 | L41: 0 | M41: 0 | N41: 0 | O41: 0 | P41: 0 | Q41: 650.28 | R41: 186572 | S41: =SUM(S42,S45) -> 6252.21 | T41: =SUM(T42,T45) -> 1450730
C42: 立木地 | D42: 総 数 | E42: =SUM(E43:E44) -> 2802.47 | F42: 605436 | G42: 2677.21 | H42: 658722 | I42: 0 | J42: 0 | K42: 0 | L42: 0 | M42: 0 | N42: 0 | O42: 0 | P42: 0 | Q42: 638.2 | R42: 186572 | S42: =SUM(S43:S44) -> 6117.88 | T42: =SUM(T43:T44) -> 1450730
D43: 人工林 | E43: 868.8 | F43: 378782 | G43: 1064.9 | H43: 473020 | J43: 0 | L43: 0 | N43: 0 | P43: 0 | Q43: 330.01 | R43: 151427 | S43: =E43+G43+I43+K43+M43+O43+Q43 -> 2263.71 | T43: 1003229
D44: 天然林 | E44: 1933.67 | F44: 226654 | G44: 1612.31 | H44: 185702 | J44: 0 | L44: 0 | N44: 0 | P44: 0 | Q44: 308.19 | R44: 35145 | S44: 3854.17 | T44: 447501
C45: その他 | E45: 58.17 | F45: 0 | G45: 64.08 | H45: 0 | J45: 0 | L45: 0 | N45: 0 | P45: 0 | Q45: 12.08 | R45: 0 | S45: 134.33 | T45: 0
B46: 飯綱町 | C46: 総 数 | E46: =SUM(E47,E50) -> 838.99 | F46: =SUM(F47,F50) -> 204905 | G46: 516.89 | H46: 120760 | I46: 0 | J46: 0 | K46: 431.07 | L46: 104231 | M46: 0 | N46: 0 | O46: 0 | P46: 0 | Q46: 2775.99 | R46: 681333 | S46: =SUM(S47,S50) -> 4562.94 | T46: =SUM(T47,T50) -> 1111229
C47: 立木地 | D47: 総 数 | E47: =SUM(E48:E49) -> 833.95 | F47: 204905 | G47: 513.41 | H47: 120760 | I47: 0 | J47: 0 | K47: 429.54 | L47: 104231 | M47: 0 | N47: 0 | O47: 0 | P47: 0 | Q47: 2760.59 | R47: 681333 | S47: =SUM(S48:S49) -> 4537.49 | T47: =SUM(T48:T49) -> 1111229
D48: 人工林 | E48: 434.01 | F48: 157081 | G48: 214.94 | H48: 82828 | J48: 0 | K48: 238.43 | L48: 81253 | N48: 0 | P48: 0 | Q48: 1317.46 | R48: 509730 | S48: =E48+G48+I48+K48+M48+O48+Q48 -> 2204.84 | T48: 830892
D49: 天然林 | E49: 399.94 | F49: 47824 | G49: 298.47 | H49: 37932 | J49: 0 | K49: 191.11 | L49: 22978 | N49: 0 | P49: 0 | Q49: 1443.13 | R49: 171603 | S49: 2332.65 | T49: 280337
C50: その他 | E50: 5.04 | F50: 0 | G50: 3.48 | H50: 0 | J50: 0 | K50: 1.53 | L50: 0 | N50: 0 | P50: 0 | Q50: 15.4 | R50: 0 | S50: 25.45 | T50: 0
B51: 長野計 | C51: 総 数 | E51: =SUM(E6,E11,E16,E21,E26,E31,E36,E41,E46) -> 57202.74 | F51: =SUM(F6,F11,F16,F21,F26,F31,F36,F41,F46) -> 13155679 | G51: 18360.01 | H51: 4381454 | I51: 80.5 | J51: 17493 | K51: 1988.7 | L51: 391230 | M51: 0 | N51: 0 | O51: 0 | P51: 0 | Q51: 24354.44 | R51: 6621535 | S51: =SUM(S52,S55) -> 101986.39 | T51: =SUM(T52,T55) -> 24567391
C52: 立木地 | D52: 総 数 | E52: =SUM(E7,E12,E17,E22,E27,E32,E37,E42,E47) -> 54923.5 | F52: 13155291 | G52: 17625.28 | H52: 4379197 | I52: 77.39 | J52: 17493 | K52: 1832.13 | L52: 391230 | M52: 0 | N52: 0 | O52: 0 | P52: 0 | Q52: 23858.39 | R52: 6618991 | S52: =SUM(S53:S54) -> 98316.69 | T52: =SUM(T53:T54) -> 24562202
D53: 人工林 | E53: =SUM(E8,E13,E18,E23,E28,E33,E38,E43,E48) -> 25588.33 | F53: 9480645 | G53: 8242.95 | H53: 3190609 | I53: 27.67 | J53: 11897 | K53: 765.1 | L53: 267620 | M53: 0 | N53: 0 | O53: 0 | P53: 0 | Q53: 15792.16 | R53: 5593341 | S53: =E53+G53+I53+K53+M53+O53+Q53 -> 50416.21 | T53: 18544112
D54: 天然林 | E54: =SUM(E9,E14,E19,E24,E29,E34,E39,E44,E49) -> 29335.17 | F54: 3674646 | G54: 9382.33 | H54: 1188588 | I54: 49.72 | J54: 5596 | K54: 1067.03 | L54: 123610 | M54: 0 | N54: 0 | O54: 0 | P54: 0 | Q54: 8066.23 | R54: 1025650 | S54: 47900.48 | T54: 6018090
C55: その他 | E55: =SUM(E10,E15,E20,E25,E30,E35,E40,E45,E50) -> 2279.24 | F55: 388 | G55: 734.73 | H55: 2257 | I55: 3.11 | J55: 0 | K55: 156.57 | L55: 0 | M55: 0 | N55: 0 | O55: 0 | P55: 0 | Q55: 496.05 | R55: 2544 | S55: 3669.7 | T55: 5189
A56: 北信 | B56: 中野市 | C56: 総 数 | E56: =SUM(E57,E60) -> 2245.03 | F56: =SUM(F57,F60) -> 645294 | G56: 836.43 | H56: 215208 | I56: 0 | J56: 0 | K56: 237.65 | L56: 52826 | M56: 236.92 | N56: 52768 | O56: 0 | P56: 0 | Q56: 4424.76 | R56: 1247218 | S56: =SUM(S57,S60) -> 7980.79 | T56: =SUM(T57,T60) -> 2213314
C57: 立木地 | D57: 総 数 | E57: =SUM(E58:E59) -> 2233.79 | F57: 645294 | G57: 813.81 | H57: 215208 | I57: 0 | J57: 0 | K57: 220.11 | L57: 52826 | M57: 219.38 | N57: 52768 | O57: 0 | P57: 0 | Q57: 4369.86 | R57: 1247218 | S57: =SUM(S58:S59) -> 7856.95 | T57: =SUM(T58:T59) -> 2213314
D58: 人工林 | E58: 1283.9 | F58: 532315 | G58: 390.64 | H58: 168154 | J58: 0 | K58: 97.45 | L58: 38978 | M58: 97.38 | N58: 38971 | P58: 0 | Q58: 2393.22 | R58: 1015893 | S58: =E58+G58+I58+K58+M58+O58+Q58 -> 4262.59 | T58: 1794311
D59: 天然林 | E59: 949.89 | F59: 112979 | G59: 423.17 | H59: 47054 | J59: 0 | K59: 122.66 | L59: 13848 | M59: 122 | N59: 13797 | P59: 0 | Q59: 1976.64 | R59: 231325 | S59: 3594.36 | T59: 419003
C60: その他 | E60: 11.24 | F60: 0 | G60: 22.62 | H60: 0 | J60: 0 | K60: 17.54 | L60: 0 | M60: 17.54 | N60: 0 | P60: 0 | Q60: 54.9 | R60: 0 | S60: 123.84 | T60: 0
A61: 北信 | B61: 飯山市 | C61: 総 数 | E61: =SUM(E62,E65) -> 7216.48 | F61: =SUM(F62,F65) -> 1484278 | G61: 2738.01 | H61: 633593 | I61: 0 | J61: 0 | K61: 159.02 | L61: 29435 | M61: 0 | N61: 0 | O61: 0 | P61: 0 | Q61: 9582 | R61: 2098731 | S61: =SUM(S62,S65) -> 19695.51 | T61: =SUM(T62,T65) -> 4246037
C62: 立木地 | D62: 総 数 | E62: =SUM(E63:E64) -> 7105.05 | F62: 1484278 | G62: 2664.34 | H62: 633593 | I62: 0 | J62: 0 | K62: 158.24 | L62: 29435 | M62: 0 | N62: 0 | O62: 0 | P62: 0 | Q62: 9439.31 | R62: 2098731 | S62: =SUM(S63:S64) -> 19366.94 | T62: =SUM(T63:T64) -> 4246037
D63: 人工林 | E63: 2005.58 | F63: 910523 | G63: 958.96 | H63: 440842 | J63: 0 | K63: 31.27 | L63: 13825 | N63: 0 | P63: 0 | Q63: 2989.32 | R63: 1360795 | S63: =E63+G63+I63+K63+M63+O63+Q63 -> 5985.13 | T63: 2725985
D64: 天然林 | E64: 5099.47 | F64: 573755 | G64: 1705.38 | H64: 192751 | J64: 0 | K64: 126.97 | L64: 15610 | N64: 0 | P64: 0 | Q64: 6449.99 | R64: 737936 | S64: 13381.81 | T64: 1520052
C65: その他 | E65: 111.43 | F65: 0 | G65: 73.67 | H65: 0 | J65: 0 | K65: 0.78 | L65: 0 | N65: 0 | P65: 0 | Q65: 142.69 | R65: 0 | S65: 328.57 | T65: 0
B66: 山ノ内町 | C66: 総 数 | E66: =SUM(E67,E70) -> 17414.87 | F66: =SUM(F67,F70) -> 3060429 | G66: 5021.53 | H66: 808841 | I66: 0 | J66: 0 | K66: 1508.87 | L66: 219267 | M66: 0 | N66: 0 | O66: 0 | P66: 0 | Q66: 16330.79 | R66: 2993923 | S66: =SUM(S67,S70) -> 40276.06 | T66: =SUM(T67,T70) -> 7082460
C67: 立木地 | D67: 総 数 | E67: =SUM(E68:E69) -> 17015.58 | F67: 3055833 | G67: 4835.84 | H67: 808597 | I67: 0 | J67: 0 | K67: 1408.29 | L67: 214803 | M67: 0 | N67: 0 | O67: 0 | P67: 0 | Q67: 16024.52 | R67: 2993791 | S67: =SUM(S68:S69) -> 39284.23 | T67: =SUM(T68:T69) -> 7073024
D68: 人工林 | E68: 3269.12 | F68: 1534271 | G68: 657.55 | H68: 287922 | J68: 0 | K68: 111.52 | L68: 41553 | N68: 0 | P68: 0 | Q68: 3433.39 | R68: 1626154 | S68: =E68+G68+I68+K68+M68+O68+Q68 -> 7471.58 | T68: 3489900
D69: 天然林 | E69: 13746.46 | F69: 1521562 | G69: 4178.29 | H69: 520675 | J69: 0 | K69: 1296.77 | L69: 173250 | N69: 0 | P69: 0 | Q69: 12591.13 | R69: 1367637 | S69: 31812.65 | T69: 3583124
C70: その他 | E70: 399.29 | F70: 4596 | G70: 185.69 | H70: 244 | J70: 0 | K70: 100.58 | L70: 4464 | N70: 0 | P70: 0 | Q70: 306.27 | R70: 132 | S70: 991.83 | T70: 9436
B71: 木島平村 | C71: 総 数 | E71: =SUM(E72,E75) -> 1531.12 | F71: =SUM(F72,F75) -> 444319 | G71: 734.8 | H71: 215046 | I71: 0 | J71: 0 | K71: 0 | L71: 0 | M71: 0 | N71: 0 | O71: 0 | P71: 0 | Q71: 285.03 | R71: 82326 | S71: =SUM(S72,S75) -> 2550.95 | T71: =SUM(T72,T75) -> 741691
C72: 立木地 | D72: 総 数 | E72: =SUM(E73:E74) -> 1513.13 | F72: 444319 | G72: 731.3 | H72: 215046 | I72: 0 | J72: 0 | K72: 0 | L72: 0 | M72: 0 | N72: 0 | O72: 0 | P72: 0 | Q72: 283.68 | R72: 82326 | S72: =SUM(S73:S74) -> 2528.11 | T72: =SUM(T73:T74) -> 741691
D73: 人工林 | E73: 900.92 | F73: 374061 | G73: 415.14 | H73: 177389 | J73: 0 | L73: 0 | N73: 0 | P73: 0 | Q73: 152.9 | R73: 67615 | S73: =E73+G73+I73+K73+M73+O73+Q73 -> 1468.96 | T73: 619065
D74: 天然林 | E74: 612.21 | F74: 70258 | G74: 316.16 | H74: 37657 | J74: 0 | L74: 0 | N74: 0 | P74: 0 | Q74: 130.78 | R74: 14711 | S74: 1059.15 | T74: 122626
C75: その他 | E75: 17.99 | F75: 0 | G75: 3.5 | H75: 0 | J75: 0 | L75: 0 | N75: 0 | P75: 0 | Q75: 1.35 | R75: 0 | S75: 22.84 | T75: 0
B76: 野沢温泉村 | C76: 総 数 | E76: =SUM(E77,E80) -> 2742.09 | F76: =SUM(F77,F80) -> 718986 | G76: 897.08 | H76: 232375 | I76: 0 | J76: 0 | K76: 111.43 | L76: 16309 | M76: 0 | N76: 0 | O76: 0 | P76: 0 | Q76: 3033.84 | R76: 793871 | S76: =SUM(S77,S80) -> 6784.44 | T76: =SUM(T77,T80) -> 1761541
C77: 立木地 | D77: 総 数 | E77: =SUM(E78:E79) -> 2721.31 | F77: 718986 | G77: 889.8 | H77: 232375 | I77: 0 | J77: 0 | K77: 109.41 | L77: 16309 | M77: 0 | N77: 0 | O77: 0 | P77: 0 | Q77: 3014.68 | R77: 793871 | S77: =SUM(S78:S79) -> 6735.2 | T77: =SUM(T78:T79) -> 1761541
D78: 人工林 | E78: 1152.76 | F78: 531402 | G78: 413.17 | H78: 177459 | J78: 0 | K78: 5.2 | L78: 2062 | N78: 0 | P78: 0 | Q78: 1285.29 | R78: 592155 | S78: =E78+G78+I78+K78+M78+O78+Q78 -> 2856.42 | T78: 1303078
D79: 天然林 | E79: 1568.55 | F79: 187584 | G79: 476.63 | H79: 54916 | J79: 0 | K79: 104.21 | L79: 14247 | N79: 0 | P79: 0 | Q79: 1729.39 | R79: 201716 | S79: 3878.78 | T79: 458463
C80: その他 | E80: 20.78 | F80: 0 | G80: 7.28 | H80: 0 | J80: 0 | K80: 2.02 | L80: 0 | N80: 0 | P80: 0 | Q80: 19.16 | R80: 0 | S80: 49.24 | T80: 0
B81: 栄村 | C81: 総 数 | E81: =SUM(E82,E85) -> 10544.06 | F81: =SUM(F82,F85) -> 2179237 | G81: 4034.86 | H81: 656551 | I81: 0 | J81: 0 | K81: 0 | L81: 0 | M81: 0 | N81: 0 | O81: 0 | P81: 0 | Q81: 11293.11 | R81: 2341093 | S81: =SUM(S82,S85) -> 25872.03 | T81: =SUM(T82,T85) -> 5176881
C82: 立木地 | D82: 総 数 | E82: =SUM(E83:E84) -> 10272.33 | F82: 2179237 | G82: 3815.3 | H82: 656551 | I82: 0 | J82: 0 | K82: 0 | L82: 0 | M82: 0 | N82: 0 | O82: 0 | P82: 0 | Q82: 11009.98 | R82: 2341093 | S82: =SUM(S83:S84) -> 25097.61 | T82: =SUM(T83:T84) -> 5176881
D83: 人工林 | E83: 3480.47 | F83: 1459970 | G83: 871.88 | H83: 354350 | J83: 0 | L83: 0 | N83: 0 | P83: 0 | Q83: 3693.97 | R83: 1560828 | S83: =E83+G83+I83+K83+M83+O83+Q83 -> 8046.32 | T83: 3375148
D84: 天然林 | E84: 6791.86 | F84: 719267 | G84: 2943.42 | H84: 302201 | J84: 0 | L84: 0 | N84: 0 | P84: 0 | Q84: 7316.01 | R84: 780265 | S84: 17051.29 | T84: 1801733
C85: その他 | E85: 271.73 | F85: 0 | G85: 219.56 | H85: 0 | J85: 0 | L85: 0 | N85: 0 | P85: 0 | Q85: 283.13 | R85: 0 | S85: 774.42 | T85: 0
B86: 北信計 | C86: 総 数 | E86: =SUM(E56,E61,E66,E71,E76,E81) -> 41693.65 | F86: =SUM(F56,F61,F66,F71,F76,F81) -> 8532543 | G86: 14262.71 | H86: 2761614 | I86: 0 | J86: 0 | K86: 2016.97 | L86: 317837 | M86: 236.92 | N86: 52768 | O86: 0 | P86: 0 | Q86: 44949.53 | R86: 9557162 | S86: =SUM(S87,S90) -> 103159.78 | T86: =SUM(T87,T90) -> 21221924
C87: 立木地 | D87: 総 数 | E87: =SUM(E57,E62,E67,E72,E77,E82) -> 40861.19 | F87: 8527947 | G87: 13750.39 | H87: 2761370 | I87: 0 | J87: 0 | K87: 1896.05 | L87: 313373 | M87: 219.38 | N87: 52768 | O87: 0 | P87: 0 | Q87: 44142.03 | R87: 9557030 | S87: =SUM(S88:S89) -> 100869.04 | T87: =SUM(T88:T89) -> 21212488
D88: 人工林 | E88: =SUM(E58,E63,E68,E73,E78,E83) -> 12092.75 | F88: 5342542 | G88: 3707.34 | H88: 1606116 | I88: 0 | J88: 0 | K88: 245.44 | L88: 96418 | M88: 97.38 | N88: 38971 | O88: 0 | P88: 0 | Q88: 13948.09 | R88: 6223440 | S88: =E88+G88+I88+K88+M88+O88+Q88 -> 30091 | T88: 13307487
D89: 天然林 | E89: =SUM(E59,E64,E69,E74,E79,E84) -> 28768.44 | F89: 3185405 | G89: 10043.05 | H89: 1155254 | I89: 0 | J89: 0 | K89: 1650.61 | L89: 216955 | M89: 122 | N89: 13797 | O89: 0 | P89: 0 | Q89: 30193.94 | R89: 3333590 | S89: 70778.04 | T89: 7905001
C90: その他 | E90: =SUM(E60,E65,E70,E75,E80,E85) -> 832.46 | F90: 4596 | G90: 512.32 | H90: 244 | I90: 0 | J90: 0 | K90: 120.92 | L90: 4464 | M90: 17.54 | N90: 0 | O90: 0 | P90: 0 | Q90: 807.5 | R90: 132 | S90: 2290.74 | T90: 9436
A91: 計画区計 | C91: 総 数 | E91: =SUM(E51,E86,) -> 98896.39 | F91: =SUM(F51,F86,) -> 21688222 | G91: 32622.72 | H91: 7143068 | I91: 80.5 | J91: 17493 | K91: 4005.67 | L91: 709067 | M91: 236.92 | N91: 52768 | O91: 0 | P91: 0 | Q91: 69303.97 | R91: 16178697 | S91: =SUM(S92,S95) -> 205146.17 | T91: =SUM(T92,T95) -> 45789315
C92: 立木地 | D92: 総 数 | E92: =SUM(E52,E87,) -> 95784.69 | F92: 21683238 | G92: 31375.67 | H92: 7140567 | I92: 77.39 | J92: 17493 | K92: 3728.18 | L92: 704603 | M92: 219.38 | N92: 52768 | O92: 0 | P92: 0 | Q92: 68000.42 | R92: 16176021 | S92: =SUM(S93:S94) -> 199185.73 | T92: =SUM(T93:T94) -> 45774690
D93: 人工林 | E93: =SUM(E53,E88,) -> 37681.08 | F93: 14823187 | G93: 11950.29 | H93: 4796725 | I93: 27.67 | J93: 11897 | K93: 1010.54 | L93: 364038 | M93: 97.38 | N93: 38971 | O93: 0 | P93: 0 | Q93: 29740.25 | R93: 11816781 | S93: =E93+G93+I93+K93+M93+O93+Q93 -> 80507.21 | T93: 31851599
D94: 天然林 | E94: =SUM(E54,E89,) -> 58103.61 | F94: 6860051 | G94: 19425.38 | H94: 2343842 | I94: 49.72 | J94: 5596 | K94: 2717.64 | L94: 340565 | M94: 122 | N94: 13797 | O94: 0 | P94: 0 | Q94: 38260.17 | R94: 4359240 | S94: 118678.52 | T94: 13923091
C95: その他 | E95: =SUM(E55,E90,) -> 3111.7 | F95: 4984 | G95: 1247.05 | H95: 2501 | I95: 3.11 | J95: 0 | K95: 277.49 | L95: 4464 | M95: 17.54 | N95: 0 | O95: 0 | P95: 0 | Q95: 1303.55 | R95: 2676 | S95: 5960.44 | T95: 14625
Q96: 207918.99 | R96: 46095304

Sheet 県計
A1: 第10-1表 市町村別・公益的機能別施業森林等区分別ゾーニング別・資源表
R2: （単位 面積：ha 蓄積：m3）
C3: 区 分 | E3: 公益的機能別施業森林等区分別
E4: 水かん | G4: 山災/土壌 | I4: 快適環境 | K4: 保健 | M4: 文化 | O4: 独自 | Q4: 木材 | S4: 総数
E5: 面積 | F5: 蓄積 | G5: 面積 | H5: 蓄積 | I5: 面積 | J5: 蓄積 | K5: 面積 | L5: 蓄積 | M5: 面積 | N5: 蓄積 | O5: 面積 | P5: 蓄積 | Q5: 面積 | R5: 蓄積 | S5: 面積 | T5: 蓄積
A6: 県計 | C6: 総 数 | E6: 418238.47 | F6: 86182467 | G6: 187988.9 | H6: 37000924 | I6: 12199.99 | J6: 2536108 | K6: 17147.9 | L6: 3097600 | M6: 1285.32 | N6: 233651 | O6: 45.95 | P6: 8210 | Q6: 355511.38 | R6: 77531619 | S6: 992417.91 | T6: 206590579
C7: 立木地 | D7: 総 数 | E7: 407065.58 | F7: 86103119 | G7: 181273.7 | H7: 36980162 | I7: 11804.44 | J7: 2536108 | K7: 15710.62 | L7: 3068625 | M7: 1206.13 | N7: 233611 | O7: 45.72 | P7: 8210 | Q7: 348488.63 | R7: 77460234 | S7: 965594.82 | T7: 206390069
D8: 人工林 | E8: 204126.41 | F8: 60044066 | G8: 87668.93 | H8: 24545892 | I8: 6241.49 | J8: 1743245 | K8: 6141.89 | L8: 1789688 | M8: 435.21 | N8: 137676 | O8: 10.05 | P8: 2946 | Q8: 190534.32 | R8: 56526233 | S8: 495158.3 | T8: 144789746
D9: 天然林 | E9: 202939.17 | F9: 26059053 | G9: 93604.77 | H9: 12434270 | I9: 5562.95 | J9: 792863 | K9: 9568.73 | L9: 1278937 | M9: 770.92 | N9: 95935 | O9: 35.67 | P9: 5264 | Q9: 157954.31 | R9: 20934001 | S9: 470436.52 | T9: 61600323
C10: その他 | E10: 11172.89 | F10: 79348 | G10: 6715.2 | H10: 20762 | I10: 395.55 | J10: 0 | K10: 1437.28 | L10: 28975 | M10: 79.19 | N10: 40 | O10: 0.23 | P10: 0 | Q10: 7022.75 | R10: 71385 | S10: 26823.09 | T10: 200510
A12: ※表中の「その他」とは、立木地以外の森林（無立木地・竹林・更新困難地）のことを示す。
A13: ※表中の「区分」とは、市町村森林整備計画において森林の機能等の別にゾーニングした区分を示す。
A14: ※表中の区分「水かん」とは、「水源の涵養の機能の維持増進を図るための森林施業を推進すべき森林」のことを示す。
A15: ※表中の区分「山災/土壌」とは、「土地に関する災害の防止及び土壌の保全の機能の維持増進を図るための森林施業を推進すべき森林」のことを示す。
A16: ※表中の区分「快適環境」とは、「快適な環境の形成の機能の維持増進を図るための森林施業を推進すべき森林」のことを示す。
A17: ※表中の区分「保健」とは、「保健文化機能の維持増進を図るための森林施業を推進すべき森林」の内「保健・レクリエーション機能の維持増進を図る森林」のことを示す。
A18: ※表中の区分「文化」とは、「保健文化機能の維持増進を図るための森林施業を推進すべき森林」の内「文化機能の維持増進を図る森林」のことを示す。
A19: ※表中の区分「木材」とは、「木材の生産機能の維持増進を図るための森林施業を推進すべき森林」のことを示す。
A20: ※表中の区分「独自」とは、市町村が独自にゾーニングした森林のことを示す。
A21: ※表中の区分「総数」の面積及び蓄積は、ゾーニングが重複している箇所があるため他表と一致しない。
